Workbook

Sheet Specs
H1: Crop:
B2: Crop | C2: Dollar Value per Cetner | E2: Derivatrive Variable | F2: Value | H2: Year | I2: Avg GDD | J2: Yield | M2: Year | N2: Premium | O2: Return | P2: Yield Profit | Q2: Derivative Profit | R2: Derivative Net | S2: Adjusted Yield Profit | T2: Derivative Loss | U2: Adjusted derivative
B3: Spring Wheat | C3: 8.5 | E3: Tick Size | F3: 200 | H3: 1996 | I3: 904.35 | J3: 215.9987156 | M3: 2011 | N3: 16871.97813 | O3: 34466.30146 | P3: 84808.29015 | Q3: =O3 - N3 -> 17594.32333 | R3: =Q3 + P3 -> 102402.6135 | S3: 84808.29015 | T3: 0 | U3: 17594.32333
B4: Corn | C4: 7.5 | E4: mean weather | F4: 950.595 | H4: 1997 | I4: 703.3 | J4: 196.8410846 | M4: 2012 | N4: 16722.25722 | O4: 27309.2859 | P4: 88444.36815 | Q4: =O4 - N4 -> 10587.02867 | R4: =Q4 + P4 -> 99031.39682 | S4: 88444.36815 | T4: 0 | U4: 10587.02867
B5: Potato | C5: 7.5 | E5: dev. Weather | F5: 157.9873491 | H5: 1998 | I5: 857.05 | J5: 248.8000966 | M5: 2013 | N5: 16655.02534 | O5: 22026.91992 | P5: 72521.68369 | Q5: 5371.894582 | R5: =Q5 + P5 -> 77893.57827 | S5: 72521.68369 | T5: 0 | U5: 5371.894582
B6: Winter Wheat | C6: 8.5 | E6: Put Strike Val | F6: 1280 | H6: 1999 | I6: 1017.35 | J6: 200.9593952 | M6: 2014 | N6: 16634.46017 | O6: 17643.44643 | P6: 66539.63415 | Q6: 1008.986255 | R6: 67548.62041 | S6: 66539.63415 | T6: 0 | U6: 1008.986255
E7: Call Strike Val | F7: 1310 | H7: 2000 | I7: 790.45 | J7: 250.8747454 | M7: 2015 | N7: 16633.88767 | O7: 0 | P7: 100823.3973 | Q7: -16633.88767 | R7: 84189.50959 | S7: 84189.50959 | T7: 16633.88767 | U7: 0
E8: interest rate | F8: 0.08 | H8: 2001 | I8: 912.25 | J8: 191.9617422 | M8: 16633.88767 | N8: 16633.88767
E9: Contract Length | F9: 0.75 | H9: 2002 | I9: 908.2 | J9: 123.3586025
E10: Risk Loading Factor | F10: 0.25 | H10: 2003 | I10: 853.95 | J10: 214.0341932
E11: m | F11: 0.2 | H11: 2004 | I11: 790.2 | J11: 240.9957707
E12: n | F12: -0.2 | H12: 2005 | I12: 985.15 | J12: 217.0883315
H13: 2006 | I13: 852.45 | J13: 260.9516301
H14: 2007 | I14: 1071.1 | J14: 212.9072799
E15: Number of years | F15: 20 | H15: 2008 | I15: 745.45 | J15: 216.4819005
H16: 2009 | I16: 866.45 | J16: 247.0284974
H17: 2010 | I17: 1394.45 | J17: 128.1070423
H18: 2011 | I18: 1128.15 | J18: 226.1554404
H19: 2012 | I19: 1102.6 | J19: 235.8516484
H20: 2013 | I20: 1084.4 | J20: 193.3911565
H21: 2014 | I21: 1069.1 | J21: 177.4390244
H22: 2015 | I22: 975.5 | J22: 268.8623927
H23: 2016
H24: 2017
E31: Year | F31: Predicted GDD | G31: Actual GDD | H31: Error | I31: Predicted Yield | J31: Actual Yield | K31: Error2 | L31: Mean | M31: Dev
E32: 2011 | F32: 910.1433333 | G32: 1128.15 | H32: =100*ABS(Table1215[[#This Row],[Actual GDD]]-Table1215[[#This Row],[Predicted GDD]])/Table1215[[#This Row],[Predicted GDD]] -> 23.95300374 | I32: 223.0780746 | J32: =J18 -> 226.1554404 | K32: =100*ABS(Table1215[[#This Row],[Actual Yield]]-Table1215[[#This Row],[Predicted Yield]])/Table1215[[#This Row],[Predicted Yield]] -> 1.37950168
E33: 2012 | F33: 923.76875 | G33: 1102.6 | H33: =100*ABS(Table1215[[#This Row],[Actual GDD]]-Table1215[[#This Row],[Predicted GDD]])/Table1215[[#This Row],[Predicted GDD]] -> 19.35887634 | I33: 222.5063224 | J33: =J19 -> 235.8516484 | K33: =100*ABS(Table1215[[#This Row],[Actual Yield]]-Table1215[[#This Row],[Predicted Yield]])/Table1215[[#This Row],[Predicted Yield]] -> 5.997728914
E34: 2013 | F34: 934.2882353 | G34: 1084.4 | H34: =100*ABS(Table1215[[#This Row],[Actual GDD]]-Table1215[[#This Row],[Predicted GDD]])/Table1215[[#This Row],[Predicted GDD]] -> 16.0669651 | I34: 221.9871422 | J34: =J20 -> 193.3911565 | K34: =100*ABS(Table1215[[#This Row],[Actual Yield]]-Table1215[[#This Row],[Predicted Yield]])/Table1215[[#This Row],[Predicted Yield]] -> 12.88182071
E35: 2014 | F35: 942.6277778 | G35: 1069.1 | H35: =100*ABS(Table1215[[#This Row],[Actual GDD]]-Table1215[[#This Row],[Predicted GDD]])/Table1215[[#This Row],[Predicted GDD]] -> 13.41698443 | I35: 221.5274012 | J35: =J21 -> 177.4390244 | K35: =100*ABS(Table1215[[#This Row],[Actual Yield]]-Table1215[[#This Row],[Predicted Yield]])/Table1215[[#This Row],[Predicted Yield]] -> 19.90199703
E36: 2015 | F36: 949.2842105 | G36: 975.5 | H36: =100*ABS(Table1215[[#This Row],[Actual GDD]]-Table1215[[#This Row],[Predicted GDD]])/Table1215[[#This Row],[Predicted GDD]] -> 2.761637577 | I36: 221.1298867 | J36: =J22 -> 268.8623927 | K36: =100*ABS(Table1215[[#This Row],[Actual Yield]]-Table1215[[#This Row],[Predicted Yield]])/Table1215[[#This Row],[Predicted Yield]] -> 21.5857326

Sheet OutlookGraphs
A1: 391.7190073 | B1: 83128.02187 | C1: 60145.38512 | D1: 402.5229001 | E1: 83277.74278 | F1: 61264.93651 | G1: 410.9901552 | H1: 83344.97466 | I1: 62123.62089 | J1: 417.6856532 | K1: 83365.53983 | L1: 62790.97181 | M1: 418.9975302 | N1: 83366.11233 | O1: 62920.52267 | P1: 418.9975302 | Q1: 83366.11233 | R1: 62920.52267
A2: 441.7190073 | B2: 73128.02187 | C2: 65101.62797 | D2: 452.5229001 | E2: 73277.74278 | F2: 66097.14391 | G2: 460.9901552 | H2: 73344.97466 | I2: 66858.61891 | J2: 467.6856532 | K2: 73365.53983 | L2: 67449.10133 | M2: 468.9975302 | N2: 73366.11233 | O2: 67563.59102 | P2: 468.9975302 | Q2: 73366.11233 | R2: 67563.59102
A3: 491.7190073 | B3: 63128.02187 | C3: 69483.83956 | D3: 502.5229001 | E3: 63277.74278 | F3: 70355.32007 | G3: 510.9901552 | H3: 63344.97466 | I3: 71019.58569 | J3: 517.6856532 | K3: 63365.53983 | L3: 71533.1996 | M3: 518.9975302 | N3: 63366.11233 | O3: 71632.62813 | P3: 518.9975302 | Q3: 63366.11233 | R3: 71632.62813
A4: 541.7190073 | B4: 53128.02187 | C4: 73292.01991 | D4: 552.5229001 | E4: 53277.74278 | F4: 74039.46497 | G4: 560.9901552 | H4: 53344.97466 | I4: 74606.52121 | J4: 567.6856532 | K4: 53365.53983 | L4: 75043.26663 | M4: 568.9975302 | N4: 53366.11233 | O4: 75127.63398 | P4: 568.9975302 | Q4: 53366.11233 | R4: 75127.63398
A5: 591.7190073 | B5: 43128.02187 | C5: 76526.16901 | D5: 602.5229001 | E5: 43277.74278 | F5: 77149.57863 | G5: 610.9901552 | H5: 43344.97466 | I5: 77619.42549 | J5: 617.6856532 | K5: 43365.53983 | L5: 77979.3024 | M5: 618.9975302 | N5: 43366.11233 | O5: 78048.60859 | P5: 618.9975302 | Q5: 43366.11233 | R5: 78048.60859
A6: 641.7190073 | B6: 33128.02187 | C6: 79186.28685 | D6: 652.5229001 | E6: 33277.74278 | F6: 79685.66103 | G6: 660.9901552 | H6: 33344.97466 | I6: 80058.29851 | J6: 667.6856532 | K6: 33365.53983 | L6: 80341.30692 | M6: 668.9975302 | N6: 33366.11233 | O6: 80395.55194 | P6: 668.9975302 | Q6: 33366.11233 | R6: 80395.55194
A7: 691.7190073 | B7: 23128.02187 | C7: 81272.37345 | D7: 702.5229001 | E7: 23277.74278 | F7: 81647.71219 | G7: 710.9901552 | H7: 23344.97466 | I7: 81923.14029 | J7: 717.6856532 | K7: 23365.53983 | L7: 82129.28019 | M7: 718.9975302 | N7: 23366.11233 | O7: 82168.46405 | P7: 718.9975302 | Q7: 23366.11233 | R7: 82168.46405
A8: 741.7190073 | B8: 13128.02187 | C8: 82784.4288 | D8: 752.5229001 | E8: 13277.74278 | F8: 83035.7321 | G8: 760.9901552 | H8: 13344.97466 | I8: 83213.95081 | J8: 767.6856532 | K8: 13365.53983 | L8: 83343.22222 | M8: 768.9975302 | N8: 13366.11233 | O8: 83367.3449 | P8: 768.9975302 | Q8: 13366.11233 | R8: 83367.3449
A9: 791.7190073 | B9: 3128.02187 | C9: 83722.45289 | D9: 802.5229001 | E9: 3277.742777 | F9: 83849.72075 | G9: 810.9901552 | H9: 3344.974659 | I9: 83930.73009 | J9: 817.6856532 | K9: 3365.539828 | L9: 83983.13299 | M9: 818.9975302 | N9: 3366.11233 | O9: 83992.19451 | P9: 818.9975302 | Q9: 3366.11233 | R9: 83992.19451
A10: 841.7190073 | B10: -6871.97813 | C10: 84086.44574 | D10: 852.5229001 | E10: -6722.257223 | F10: 84089.67816 | G10: 860.9901552 | H10: -6655.025341 | I10: 84073.47811 | J10: 867.6856532 | K10: -6634.460172 | L10: 84049.01251 | M10: 868.9975302 | N10: -6633.88767 | O10: 84043.01286 | P10: 868.9975302 | Q10: -6633.88767 | R10: 84043.01286
A11: 891.7190073 | B11: -16871.97813 | C11: 83876.40734 | D11: 902.5229001 | E11: -16722.25722 | F11: 83755.60431 | G11: 910.9901552 | H11: -16655.02534 | I11: 83642.19489 | J11: 917.6856532 | K11: -16634.46017 | L11: 83540.86079 | M11: 918.9975302 | N11: -16633.88767 | O11: 83519.79997 | P11: 918.9975302 | Q11: -16633.88767 | R11: 83519.79997
A12: 923.76875 | B12: -16871.97813 | C12: 83439.87089 | D12: 934.2882353 | E12: -16722.25722 | F12: 83245.17831 | G12: 942.6277778 | H12: -16655.02534 | I12: 83072.77545 | J12: 949.2842105 | K12: -16634.46017 | L12: 82923.7075 | M12: 950.595 | N12: -16633.88767 | O12: 82893.15397 | P12: 950.595 | Q12: -16633.88767 | R12: 82893.15397
A13: 955.8184927 | B13: -16871.97813 | C13: 82767.47969 | D13: 966.0535705 | E13: -16722.25722 | F13: 82503.06491 | G13: 974.2654004 | H13: -16655.02534 | I13: 82273.52788 | J13: 980.8827679 | K13: -16634.46017 | L13: 82077.29329 | M13: 982.1924698 | N13: -16633.88767 | O13: 82037.26283 | P13: 982.1924698 | Q13: -16633.88767 | R13: 82037.26283
A14: 1005.818493 | B14: -6871.97813 | C14: 81247.50789 | D14: 1016.053571 | E14: -6722.257223 | F14: 80865.58801 | G14: 1024.2654 | H14: -6655.025341 | I14: 80541.77404 | J14: 1030.882768 | K14: -6634.460172 | L14: 80269.56794 | M14: 1032.19247 | N14: -6633.88767 | O14: 80214.50128 | P14: 1032.19247 | Q14: -6633.88767 | R14: 80214.50128
A15: 1055.818493 | B15: 3128.02187 | C15: 79153.50483 | D15: 1066.053571 | E15: 3277.742777 | F15: 78654.07986 | G15: 1074.2654 | H15: 3344.974659 | I15: 78235.98896 | J15: 1080.882768 | K15: 3365.539828 | L15: 77887.81134 | M15: 1082.19247 | N15: 3366.11233 | O15: 77817.70849 | P15: 1082.19247 | Q15: 3366.11233 | R15: 77817.70849
A16: 1105.818493 | B16: 13128.02187 | C16: 76485.47052 | D16: 1116.053571 | E16: 13277.74278 | F16: 75868.54046 | G16: 1124.2654 | H16: 13344.97466 | I16: 75356.17262 | J16: 1130.882768 | K16: 13365.53983 | L16: 74932.02349 | M16: 1132.19247 | N16: 13366.11233 | O16: 74846.88444 | P16: 1132.19247 | Q16: 13366.11233 | R16: 74846.88444
A17: 1155.818493 | B17: 23128.02187 | C17: 73243.40496 | D17: 1166.053571 | E17: 23277.74278 | F17: 72508.96981 | G17: 1174.2654 | H17: 23344.97466 | I17: 71902.32503 | J17: 1180.882768 | K17: 23365.53983 | L17: 71402.20439 | M17: 1182.19247 | N17: 23366.11233 | O17: 71302.02914 | P17: 1182.19247 | Q17: 23366.11233 | R17: 71302.02914
A18: 1205.818493 | B18: 33128.02187 | C18: 69427.30816 | D18: 1216.053571 | E18: 33277.74278 | F18: 68575.36792 | G18: 1224.2654 | H18: 33344.97466 | I18: 67874.44619 | J18: 1230.882768 | K18: 33365.53983 | L18: 67298.35403 | M18: 1232.19247 | N18: 33366.11233 | O18: 67183.14259 | P18: 1232.19247 | Q18: 33366.11233 | R18: 67183.14259
A19: 1255.818493 | B19: 43128.02187 | C19: 65037.1801 | D19: 1266.053571 | E19: 43277.74278 | F19: 64067.73477 | G19: 1274.2654 | H19: 43344.97466 | I19: 63272.53611 | J19: 1280.882768 | K19: 43365.53983 | L19: 62620.47243 | M19: 1282.19247 | N19: 43366.11233 | O19: 62490.22479 | P19: 1282.19247 | Q19: 43366.11233 | R19: 62490.22479
A20: 1305.818493 | B20: 53128.02187 | C20: 60073.02079 | D20: 1316.053571 | E20: 53277.74278 | F20: 58986.07037 | G20: 1324.2654 | H20: 53344.97466 | I20: 58096.59477 | J20: 1330.882768 | K20: 53365.53983 | L20: 57368.55958 | M20: 1332.19247 | N20: 53366.11233 | O20: 57223.27574 | P20: 1332.19247 | Q20: 53366.11233 | R20: 57223.27574
A21: 1355.818493 | B21: 63128.02187 | C21: 54534.83023 | D21: 1366.053571 | E21: 63277.74278 | F21: 53330.37472 | G21: 1374.2654 | H21: 63344.97466 | I21: 52346.62218 | J21: 1380.882768 | K21: 63365.53983 | L21: 51542.61548 | M21: 1382.19247 | N21: 63366.11233 | O21: 51382.29544 | P21: 1382.19247 | Q21: 63366.11233 | R21: 51382.29544
A22: 1405.818493 | B22: 73128.02187 | C22: 48422.60842 | D22: 1416.053571 | E22: 73277.74278 | F22: 47100.64782 | G22: 1424.2654 | H22: 73344.97466 | I22: 46022.61834 | J22: 1430.882768 | K22: 73365.53983 | L22: 45142.64013 | M22: 1432.19247 | N22: 73366.11233 | O22: 44967.28389 | P22: 1432.19247 | Q22: 73366.11233 | R22: 44967.28389
A23: 1455.818493 | B23: 83128.02187 | C23: 41736.35537 | D23: 1466.053571 | E23: 83277.74278 | F23: 40296.88968 | G23: 1474.2654 | H23: 83344.97466 | I23: 39124.58326 | J23: 1480.882768 | K23: 83365.53983 | L23: 38168.63352 | M23: 1482.19247 | N23: 83366.11233 | O23: 37978.24109 | P23: 1482.19247 | Q23: 83366.11233 | R23: 37978.24109

Sheet Calculations
A1: April | B1: 22
A2: May | B2: 24
A3: May | B3: 15
A4: May | B4: 22
A5: May | B5: 21
A6: June | B6: 1
A7: May | B7: 24
A8: May | B8: 1
A9: June | B9: 2
A10: May | B10: 5
A11: May | B11: 27
A12: May | B12: 7
A13: May | B13: 27
A14: May | B14: 18
A15: April | B15: 30
A16: May | B16: 11
A17: April | B17: 21
A18: April | B18: 27
A19: May | B19: 2
A20: May | B20: 8
J300: 4594.987651

Sheet RSquare
A4: Crop | B4: Mosocow | C4: Krasnodar | D4: Omsk
A5: Corn | B5: 0.276 | C5: 0.201 | D5: 0.137
A6: Potato | B6: 0.026 | C6: 0.247 | D6: 0.195
A7: Spring Wheat | B7: 0.211 | C7: 0.428 | D7: 0.26
A8: Winter Wheat | B8: 0.083 | C8: 0.259 | D8: 0.057
A13: Crop | B13: Method: | C13: Search Month | D13: Initial GDD | E13: Avg Time | F13: Min GDD | G13: End Date
A14: Corn
A15: Potato
A16: Spring Wheat
A17: Winter Wheat

Sheet Moscow Historic GDD
AZ1: (per acre) | BA1: Year | BB1: Corn Yield | BC1: Winter Wheat Yield | BD1: Spring Wheat Yield | BE1: Potato Yield | CA1: Year | CB1: Corn Yield | CC1: Winter Wheat Yield | CD1: Spring Wheat Yield | CE1: Potato Yield | CG1: Year | CH1: Corn Yield | CI1: Winter Wheat Yield | CJ1: Spring Wheat Yield | CK1: Potato Yield
AA2: GDD | BA2: 1996 | BB2: 215.9987156 | BC2: 17.23256338 | BD2: 20.93236715 | BE2: 153.1747718 | CA2: 1996 | CB2: 15135.03 | CC2: 1529.39 | CD2: 43.33 | CE2: 16441.78 | CG2: 1996 | CH2: 215.9987156 | CI2: 17.23256338 | CJ2: 20.93236715 | CK2: 153.1747718
E3: min | F3: avg | G3: max | H3: rain fall | AA3: Corn | AB3: Wheat | AC3: Potato | BA3: 1997 | BB3: 196.8410846 | BC3: 20.43349255 | BD3: 25.86574074 | BE3: 118.0719124 | CA3: 1997 | CB3: 10962.08 | CC3: 1411.75 | CD3: 111.74 | CE3: 11854.42 | CG3: 1997 | CH3: 196.8410846 | CI3: 20.43349255 | CJ3: 25.86574074 | CK3: 118.0719124
B4: 1996 | C4: Jan.uary | D4: 1 | E4: -18.5 | F4: -16.1 | G4: -13.7 | AA4: -26.1 | AB4: -20.5 | AC4: -23.3 | BA4: 1998 | BB4: 248.8000966 | BC4: 14.50579025 | BD4: 16.60040363 | BE4: 91.45008112 | CA4: 1998 | CB4: 10305.3 | CC4: 889.35 | CD4: 164.51 | CE4: 8454.56 | CG4: 1998 | CH4: 248.8000966 | CI4: 14.50579025 | CJ4: 16.60040363 | CK4: 91.45008112
D5: 2 | E5: -21.3 | F5: -18.8 | G5: -15.1 | AA5: -28.2 | AB5: -22.6 | AC5: -25.4 | BA5: 1999 | BB5: 200.9593952 | BC5: 14.21279655 | BD5: 6.839095745 | BE5: 94.63607889 | CA5: 1999 | CB5: 9304.42 | CC5: 593.1 | CD5: 102.86 | CE5: 8157.63 | CG5: 1999 | CH5: 200.9593952 | CI5: 14.21279655 | CJ5: 6.839095745 | CK5: 94.63607889
D6: 3 | E6: -22.3 | F6: -17.5 | G6: -12.3 | AA6: -27.3 | AB6: -21.7 | AC6: -24.5 | BA6: 2000 | BB6: 250.8747454 | BC6: 23.3728899 | BD6: 14.47826087 | BE6: 102.6629295 | CA6: 2000 | CB6: 14781.54 | CC6: 1855.34 | CD6: 149.85 | CE6: 8515.89 | CG6: 2000 | CH6: 250.8747454 | CI6: 23.3728899 | CJ6: 14.47826087 | CK6: 102.6629295
D7: 4 | E7: -12.9 | F7: -11.8 | G7: -10.6 | AA7: -21.75 | AB7: -16.15 | AC7: -18.95 | BA7: 2001 | BB7: 191.9617422 | BC7: 20.0592928 | BD7: 17.09017341 | BE7: 79.48414948 | CA7: 2001 | CB7: 9784.29 | CC7: 930.35 | CD7: 147.83 | CE7: 6167.97 | CG7: 2001 | CH7: 191.9617422 | CI7: 20.0592928 | CJ7: 17.09017341 | CK7: 79.48414948
D8: 5 | E8: -12.8 | F8: -8.7 | G8: -4.6 | AA8: -18.7 | AB8: -13.1 | AC8: -15.9 | BA8: 2002 | BB8: 123.3586025 | BC8: 27.21503 | BD8: 17.94552058 | BE8: 73.03185791 | CA8: 2002 | CB8: 5614.05 | CC8: 1723.8 | CD8: 148.23 | CE8: 5180.88 | CG8: 2002 | CH8: 123.3586025 | CI8: 27.21503 | CJ8: 17.94552058 | CK8: 73.03185791
D9: 6 | E9: -8.3 | F9: -6.3 | G9: -5.2 | AA9: -16.75 | AB9: -11.15 | AC9: -13.95 | BA9: 2003 | BB9: 214.0341932 | BC9: 18.01906158 | BD9: 20.92847125 | BE9: 103.6567041 | CA9: 2003 | CB9: 10703.85 | CC9: 614.45 | CD9: 149.22 | CE9: 6277.45 | CG9: 2003 | CH9: 214.0341932 | CI9: 18.01906158 | CJ9: 20.92847125 | CK9: 103.6567041
D10: 7 | E10: -9 | F10: -8.2 | G10: -6.9 | AA10: -17.95 | AB10: -12.35 | AC10: -15.15 | BA10: 2004 | BB10: 240.9957707 | BC10: 28.153874 | BD10: 16.90771961 | BE10: 105.9470268 | CA10: 2004 | CB10: 10256.78 | CC10: 777.61 | CD10: 190.55 | CE10: 6040.04 | CG10: 2004 | CH10: 240.9957707 | CI10: 28.153874 | CJ10: 16.90771961 | CK10: 105.9470268
D11: 8 | E11: -7.5 | F11: -6.4 | G11: -5.3 | AA11: -16.4 | AB11: -10.8 | AC11: -13.6 | BA11: 2005 | BB11: 217.0883315 | BC11: 21.58468229 | BD11: 15.53710692 | BE11: 121.3769245 | CA11: 2005 | CB11: 7962.8 | CC11: 893.39 | CD11: 123.52 | CE11: 6385.64 | CG11: 2005 | CH11: 217.0883315 | CI11: 21.58468229 | CJ11: 15.53710692 | CK11: 121.3769245
D12: 9 | E12: -13.7 | F12: -10.3 | G12: -7.5 | AA12: -20.6 | AB12: -15 | AC12: -17.8 | BA12: 2006 | BB12: 260.9516301 | BC12: 24.72877784 | BD12: 20.51564626 | BE12: 141.5836884 | CA12: 2006 | CB12: 9764.81 | CC12: 821.49 | CD12: 150.79 | CE12: 6978.66 | CG12: 2006 | CH12: 260.9516301 | CI12: 24.72877784 | CJ12: 20.51564626 | CK12: 141.5836884
D13: 10 | E13: -15.1 | F13: -10.3 | G13: -5.5 | AA13: -20.3 | AB13: -14.7 | AC13: -17.5 | BA13: 2007 | BB13: 212.9072799 | BC13: 31.55748373 | BD13: 16.89805825 | BE13: 141.5227416 | CA13: 2007 | CB13: 8656.81 | CC13: 872.88 | CD13: 104.43 | CE13: 6752.05 | CG13: 2007 | CH13: 212.9072799 | CI13: 31.55748373 | CJ13: 16.89805825 | CK13: 141.5227416
D14: 11 | E14: -14.4 | F14: -10.5 | G14: -8.4 | AA14: -21.4 | AB14: -15.8 | AC14: -18.6 | BA14: 2008 | BB14: 216.4819005 | BC14: 29.63768116 | BD14: 22.63461538 | BE14: 147.4087137 | CA14: 2008 | CB14: 9568.5 | CC14: 1227 | CD14: 117.7 | CE14: 7105.1 | CG14: 2008 | CH14: 216.4819005 | CI14: 29.63768116 | CJ14: 22.63461538 | CK14: 147.4087137
D15: 12 | E15: -14 | F15: -9.5 | G15: -6.3 | AA15: -20.15 | AB15: -14.55 | AC15: -17.35 | BA15: 2009 | BB15: 247.0284974 | BC15: 31.46073298 | BD15: 22.17777778 | BE15: 181.6767068 | CA15: 2009 | CB15: 9535.3 | CC15: 1201.8 | CD15: 99.8 | CE15: 9047.5 | CG15: 2009 | CH15: 247.0284974 | CI15: 31.46073298 | CJ15: 22.17777778 | CK15: 181.6767068
D16: 13 | E16: -14 | F16: -10.8 | G16: -7 | AA16: -20.5 | AB16: -14.9 | AC16: -17.7 | BA16: 2010 | BB16: 128.1070423 | BC16: 21.87745098 | BD16: 14.275 | BE16: 102.7120623 | CA16: 2010 | CB16: 4547.8 | CC16: 892.6 | CD16: 57.1 | CE16: 5279.4 | CG16: 2010 | CH16: 128.1070423 | CI16: 21.87745098 | CJ16: 14.275 | CK16: 102.7120623
D17: 14 | E17: -16.7 | F17: -12.6 | G17: -7.1 | AA17: -21.9 | AB17: -16.3 | AC17: -19.1 | BA17: 2011 | BB17: 226.1554404 | BC17: 26.16216216 | BD17: 13.29268293 | BE17: 178.9921875 | CA17: 2011 | CB17: 8729.6 | CC17: 1161.6 | CD17: 54.5 | CE17: 9164.4 | CG17: 2011 | CH17: 226.1554404 | CI17: 26.16216216 | CJ17: 13.29268293 | CK17: 178.9921875
D18: 15 | E18: -13.6 | F18: -9.8 | G18: -6.5 | AA18: -20.05 | AB18: -14.45 | AC18: -17.25 | BA18: 2012 | BB18: 235.8516484 | BC18: 25.01382488 | BD18: 19.55555556 | BE18: 172.4225352 | CA18: 2012 | CB18: 8585 | CC18: 1085.6 | CD18: 52.8 | CE18: 8569.4 | CG18: 2012 | CH18: 235.8516484 | CI18: 25.01382488 | CJ18: 19.55555556 | CK18: 172.4225352
D19: 16 | E19: -6.9 | F19: -5.3 | G19: -4.2 | AA19: -15.55 | AB19: -9.95 | AC19: -12.75 | BA19: 2013 | BB19: 193.3911565 | BC19: 22.93273543 | BD19: 10.46666667 | BE19: 155.0515695 | CA19: 2013 | CB19: 5685.7 | CC19: 1022.8 | CD19: 31.4 | CE19: 6915.3 | CG19: 2013 | CH19: 193.3911565 | CI19: 22.93273543 | CJ19: 10.46666667 | CK19: 155.0515695
D20: 17 | E20: -5 | F20: -4 | G20: -2.8 | AA20: -13.9 | AB20: -8.3 | AC20: -11.1 | BA20: 2014 | BB20: 177.4390244 | BC20: 31.78745645 | BD20: 24.3880597 | BE20: 177.2906977 | CA20: 2014 | CB20: 5820 | CC20: 912.3 | CD20: 163.4 | CE20: 7623.5 | CG20: 2014 | CH20: 177.4390244 | CI20: 31.78745645 | CJ20: 24.3880597 | CK20: 177.2906977
D21: 18 | E21: -4.6 | F21: -4.2 | G21: -3.4 | AA21: -14 | AB21: -8.4 | AC21: -11.2 | BA21: 2015 | BB21: 268.8623927 | BC21: 32.9487137 | BD21: 31.44465988 | BE21: 211.8566048 | CA21: 2015 | CB21: 9708.621 | CC21: 2384.762 | CD21: 194.611 | CE21: 9337.368 | CG21: 2015 | CH21: 268.8623927 | CI21: 32.9487137 | CJ21: 31.44465988 | CK21: 211.8566048
D22: 19 | E22: -4.3 | F22: -3.7 | G22: -3 | AA22: -13.65 | AB22: -8.05 | AC22: -10.85 | BA22: 2016 | CA22: 2016 | CG22: 2016
D23: 20 | E23: -5.9 | F23: -4.9 | G23: -3.6 | AA23: -14.75 | AB23: -9.15 | AC23: -11.95 | BA23: 2017 | CA23: 2017 | CG23: 2017
D24: 21 | E24: -7.5 | F24: -6.5 | G24: -5.5 | AA24: -16.5 | AB24: -10.9 | AC24: -13.7
D25: 22 | E25: -10 | F25: -8.8 | G25: -6.7 | AA25: -18.35 | AB25: -12.75 | AC25: -15.55
D26: 23 | E26: -15.2 | F26: -13.6 | G26: -10 | AA26: -22.6 | AB26: -17 | AC26: -19.8 | BA26: Plant | BB26: init Plant Month | BC26: Initial Plant GDD | BD26: Avg time (days) | BE26: Min Avg Value | BF26: End | BG26: Temp Floor | BH26: Technique
D27: 24 | E27: -17.3 | F27: -14.4 | G27: -10.8 | AA27: -24.05 | AB27: -18.45 | AC27: -21.25 | BA27: Corn | BB27: 5 | BC27: 0 | BD27: 21 | BE27: 4.7 | BF27: 28,9 | BH27: 1
D28: 25 | E28: -15.5 | F28: -12.3 | G28: -9.3 | AA28: -22.4 | AB28: -16.8 | AC28: -19.6 | BA28: Winter Wheat | BB28: 3 | BC28: -5 | BD28: 14 | BF28: 25,7 | BG28: -5 | BH28: 2
D29: 26 | E29: -18.6 | F29: -14.3 | G29: -10.3 | AA29: -24.45 | AB29: -18.85 | AC29: -21.65 | BA29: Spring Wheat | BB29: 4 | BC29: -1.5 | BD29: 7 | BE29: 5.6 | BF29: 1,8 | BH29: 3
D30: 27 | E30: -10.3 | F30: -7 | G30: -4.7 | AA30: -17.5 | AB30: -11.9 | AC30: -14.7 | BA30: Potato | BB30: 4 | BC30: -2.8 | BD30: 7 | BE30: -2.8 | BF30: 5,9 | BG30: -2 | BH30: 1
D31: 28 | E31: -18.7 | F31: -14.8 | G31: -4.7 | AA31: -21.7 | AB31: -16.1 | AC31: -18.9
D32: 29 | E32: -14.9 | F32: -10.1 | G32: -8 | AA32: -21.45 | AB32: -15.85 | AC32: -18.65
D33: 30 | E33: -12.5 | F33: -11 | G33: -8.5 | AA33: -20.5 | AB33: -14.9 | AC33: -17.7
D34: 31 | E34: -12.8 | F34: -8.1 | G34: -4.7 | AA34: -18.75 | AB34: -13.15 | AC34: -15.95
C35: Feb.ruary | D35: 1 | E35: -11.9 | F35: -9 | G35: -6.7 | AA35: -19.3 | AB35: -13.7 | AC35: -16.5
D36: 2 | E36: -10.3 | F36: -6.8 | G36: -4 | AA36: -17.15 | AB36: -11.55 | AC36: -14.35
D37: 3 | E37: -15.6 | F37: -12.7 | G37: -10.3 | AA37: -22.95 | AB37: -17.35 | AC37: -20.15
D38: 4 | E38: -12.5 | F38: -10.4 | G38: -8.4 | AA38: -20.45 | AB38: -14.85 | AC38: -17.65
D39: 5 | E39: -13.3 | F39: -11.5 | G39: -9.7 | AA39: -21.5 | AB39: -15.9 | AC39: -18.7
D40: 6 | E40: -16.6 | F40: -13.6 | G40: -10.1 | AA40: -23.35 | AB40: -17.75 | AC40: -20.55
D41: 7 | E41: -23 | F41: -17.6 | G41: -12.4 | AA41: -27.7 | AB41: -22.1 | AC41: -24.9
D42: 8 | E42: -21.2 | F42: -16.8 | G42: -11 | AA42: -26.1 | AB42: -20.5 | AC42: -23.3
D43: 9 | E43: -20.3 | F43: -16.9 | G43: -14 | AA43: -27.15 | AB43: -21.55 | AC43: -24.35
D44: 10 | E44: -23.5 | F44: -17.8 | G44: -11 | AA44: -27.25 | AB44: -21.65 | AC44: -24.45
D45: 11 | E45: -17.4 | F45: -14.2 | G45: -11.4 | AA45: -24.4 | AB45: -18.8 | AC45: -21.6
D46: 12 | E46: -20.3 | F46: -15.8 | G46: -12.4 | AA46: -26.35 | AB46: -20.75 | AC46: -23.55
D47: 13 | E47: -18.6 | F47: -16.5 | G47: -14.4 | AA47: -26.5 | AB47: -20.9 | AC47: -23.7
D48: 14 | E48: -17.2 | F48: -15.1 | G48: -13.5 | AA48: -25.35 | AB48: -19.75 | AC48: -22.55
D49: 15 | E49: -13.9 | F49: -11.4 | G49: -9.2 | AA49: -21.55 | AB49: -15.95 | AC49: -18.75
D50: 16 | E50: -14.9 | F50: -11.7 | G50: -8.6 | AA50: -21.75 | AB50: -16.15 | AC50: -18.95
D51: 17 | E51: -9.6 | F51: -4 | G51: -0.4 | AA51: -15 | AB51: -9.4 | AC51: -12.2
D52: 18 | E52: -4.3 | F52: -0.4 | G52: 1.5 | AA52: -11.4 | AB52: -5.8 | AC52: -8.6
D53: 19 | E53: -9.7 | F53: -7.8 | G53: -4.3 | AA53: -17 | AB53: -11.4 | AC53: -14.2
D54: 20 | E54: -9 | F54: -6.6 | G54: -3.6 | AA54: -16.3 | AB54: -10.7 | AC54: -13.5
D55: 21 | E55: -6 | F55: -3.1 | G55: 0.1 | AA55: -12.95 | AB55: -7.35 | AC55: -10.15
D56: 22 | E56: -1.6 | F56: -0.3 | G56: 1.4 | AA56: -10.1 | AB56: -4.5 | AC56: -7.3
D57: 23 | E57: 0.6 | F57: 1.5 | G57: 2.4 | AA57: -8.5 | AB57: -2.9 | AC57: -5.7
D58: 24 | E58: -0.8 | F58: 0.3 | G58: 1.1 | AA58: -9.85 | AB58: -4.25 | AC58: -7.05
D59: 25 | E59: -6.5 | F59: -4 | G59: 0.6 | AA59: -12.95 | AB59: -7.35 | AC59: -10.15
D60: 26 | E60: -12.4 | F60: -9.6 | G60: -6 | AA60: -19.2 | AB60: -13.6 | AC60: -16.4
D61: 27 | E61: -19.1 | F61: -11.8 | G61: -5.6 | AA61: -22.35 | AB61: -16.75 | AC61: -19.55
D62: 28 | E62: -16.5 | F62: -9.5 | G62: 0.6 | AA62: -17.95 | AB62: -12.35 | AC62: -15.15
D63: 29 | E63: -13.4 | F63: -7.9 | G63: -2.8 | AA63: -18.1 | AB63: -12.5 | AC63: -15.3
C64: Mar. | D64: 1 | E64: -10.8 | F64: -8 | G64: -4.9 | AA64: -17.85 | AB64: -12.25 | AC64: -15.05
D65: 2 | E65: -12.3 | F65: -9.2 | G65: -6.3 | AA65: -19.3 | AB65: -13.7 | AC65: -16.5
D66: 3 | E66: -10.3 | F66: -6.9 | G66: -2.9 | AA66: -16.6 | AB66: -11 | AC66: -13.8
D67: 4 | E67: -10 | F67: -7 | G67: -5 | AA67: -17.5 | AB67: -11.9 | AC67: -14.7
D68: 5 | E68: -5.9 | F68: -4.3 | G68: -2.3 | AA68: -14.1 | AB68: -8.5 | AC68: -11.3
D69: 6 | E69: -10.4 | F69: -6.9 | G69: -3.2 | AA69: -16.8 | AB69: -11.2 | AC69: -14
D70: 7 | E70: -7 | F70: -5 | G70: -1.1 | AA70: -14.05 | AB70: -8.45 | AC70: -11.25
D71: 8 | E71: -12 | F71: -6 | G71: -1 | AA71: -16.5 | AB71: -10.9 | AC71: -13.7
D72: 9 | E72: -3.2 | F72: -2.3 | G72: -1.7 | AA72: -12.45 | AB72: -6.85 | AC72: -9.65
D73: 10 | E73: -3.9 | F73: -2.4 | G73: 0.1 | AA73: -11.9 | AB73: -6.3 | AC73: -9.1
D74: 11 | E74: -9 | F74: -4 | G74: 1.9 | AA74: -13.55 | AB74: -7.95 | AC74: -10.75
D75: 12 | E75: -7.8 | F75: -2.4 | G75: 2.7 | AA75: -12.55 | AB75: -6.95 | AC75: -9.75
D76: 13 | E76: -3.6 | F76: -0.6 | G76: 2.7 | AA76: -10.45 | AB76: -4.85 | AC76: -7.65
D77: 14 | E77: -6.8 | F77: -1.8 | G77: 2.6 | AA77: -12.1 | AB77: -6.5 | AC77: -9.3
D78: 15 | E78: -5.3 | F78: -0.4 | G78: 3.2 | AA78: -11.05 | AB78: -5.45 | AC78: -8.25
D79: 16 | E79: -7.9 | F79: -4 | G79: 0 | AA79: -13.95 | AB79: -8.35 | AC79: -11.15
D80: 17 | E80: -9.4 | F80: -2.6 | G80: 4.2 | AA80: -12.6 | AB80: -7 | AC80: -9.8
D81: 18 | E81: -9.8 | F81: -1.6 | G81: 6 | AA81: -11.9 | AB81: -6.3 | AC81: -9.1
D82: 19 | E82: -5.2 | F82: -0.4 | G82: 5.4 | AA82: -9.9 | AB82: -4.3 | AC82: -7.1
D83: 20 | E83: -8.3 | F83: -0.5 | G83: 6.3 | AA83: -11 | AB83: -5.4 | AC83: -8.2
D84: 21 | E84: -7 | F84: -0.8 | G84: 6.3 | AA84: -10.35 | AB84: -4.75 | AC84: -7.55
D85: 22 | E85: -9.7 | F85: -1.3 | G85: 6.4 | AA85: -11.65 | AB85: -6.05 | AC85: -8.85
D86: 23 | E86: -8.4 | F86: -0.5 | G86: 7 | AA86: -10.7 | AB86: -5.1 | AC86: -7.9
D87: 24 | E87: -6.5 | F87: 0.5 | G87: 6.6 | AA87: -9.95 | AB87: -4.35 | AC87: -7.15
D88: 25 | E88: -5 | F88: -0.2 | G88: 5.6 | AA88: -9.7 | AB88: -4.1 | AC88: -6.9
D89: 26 | E89: -5.5 | F89: -2.1 | G89: 0.7 | AA89: -12.4 | AB89: -6.8 | AC89: -9.6
D90: 27 | E90: -6.9 | F90: -3.3 | G90: 0.4 | AA90: -13.25 | AB90: -7.65 | AC90: -10.45
D91: 28 | E91: -5.1 | F91: -2.8 | G91: -1.1 | AA91: -13.1 | AB91: -7.5 | AC91: -10.3
D92: 29 | E92: -3.1 | F92: -1.3 | G92: 0.9 | AA92: -11.1 | AB92: -5.5 | AC92: -8.3
D93: 30 | E93: -7.3 | F93: -3.6 | G93: -0.3 | AA93: -13.8 | AB93: -8.2 | AC93: -11
D94: 31 | E94: -4.5 | F94: -2.7 | G94: -1 | AA94: -12.75 | AB94: -7.15 | AC94: -9.95
C95: Apr. | D95: 1 | E95: -1 | F95: 0.7 | G95: 3 | AA95: -9 | AB95: -3.4 | AC95: -6.2
D96: 2 | E96: -1.4 | F96: 2.3 | G96: 6.6 | AA96: -7.4 | AB96: -1.8 | AC96: -4.6
D97: 3 | E97: 2 | F97: 5.1 | G97: 10 | AA97: -4 | AB97: 1.6 | AC97: -1.2
D98: 4 | E98: -0.3 | F98: 2.8 | G98: 4.8 | AA98: -7.75 | AB98: -2.15 | AC98: -4.95
D99: 5 | E99: 2.3 | F99: 4.5 | G99: 7.8 | AA99: -4.95 | AB99: 0.65 | AC99: -2.15
D100: 6 | E100: 1.6 | F100: 6 | G100: 12.5 | AA100: -2.95 | AB100: 2.65 | AC100: -0.15
D101: 7 | E101: -2.8 | F101: 5.1 | G101: 11.6 | AA101: -5.6 | AB101: 0 | AC101: -2.8
D102: 8 | E102: -1 | F102: 4.8 | G102: 10 | AA102: -5.5 | AB102: 0.1 | AC102: -2.7
D103: 9 | E103: -0.6 | F103: 5.2 | G103: 11.8 | AA103: -4.4 | AB103: 1.2 | AC103: -1.6
D104: 10 | E104: 0 | F104: 5.8 | G104: 12.1 | AA104: -3.95 | AB104: 1.65 | AC104: -1.15
D105: 11 | E105: -2.1 | F105: 4.9 | G105: 10.2 | AA105: -5.95 | AB105: -0.35 | AC105: -3.15
D106: 12 | E106: 1.9 | F106: 4.5 | G106: 8.9 | AA106: -4.6 | AB106: 1 | AC106: -1.8
D107: 13 | E107: -1 | F107: 4.7 | G107: 9.8 | AA107: -5.6 | AB107: 0 | AC107: -2.8
D108: 14 | E108: 0.6 | F108: 6.2 | G108: 11.5 | AA108: -3.95 | AB108: 1.65 | AC108: -1.15
D109: 15 | E109: 4.2 | F109: 6.4 | G109: 10.8 | AA109: -2.5 | AB109: 3.1 | AC109: 0.3
D110: 16 | E110: -1.4 | F110: 4.4 | G110: 10.2 | AA110: -5.6 | AB110: 0 | AC110: -2.8
D111: 17 | E111: 2.3 | F111: 7 | G111: 12.1 | AA111: -2.8 | AB111: 2.8 | AC111: 0
D112: 18 | E112: 1.4 | F112: 3.4 | G112: 7 | AA112: -5.8 | AB112: -0.2 | AC112: -3
D113: 19 | E113: -2.4 | F113: 4.2 | G113: 10.3 | AA113: -6.05 | AB113: -0.45 | AC113: -3.25
D114: 20 | E114: 3 | F114: 9.1 | G114: 15.1 | AA114: -0.95 | AB114: 4.65 | AC114: 1.85
D115: 21 | E115: 8.8 | F115: 10.1 | G115: 13.2 | AA115: 1 | AB115: 6.6 | AC115: 3.8
D116: 22 | E116: 3 | F116: 11.2 | G116: 20 | AA116: 1.5 | AB116: 7.1 | AC116: 4.3
D117: 23 | E117: 12.1 | F117: 17.9 | G117: 23.5 | AA117: 7.8 | AB117: 13.4 | AC117: 10.6
D118: 24 | E118: 8.1 | F118: 13.5 | G118: 18.5 | AA118: 3.3 | AB118: 8.9 | AC118: 6.1
D119: 25 | E119: 1 | F119: 4.7 | G119: 11 | AA119: -4 | AB119: 1.6 | AC119: -1.2
D120: 26 | E120: 2.5 | F120: 4.6 | G120: 5.9 | AA120: -5.8 | AB120: -0.2 | AC120: -3
D121: 27 | E121: 3.8 | F121: 6 | G121: 9.9 | AA121: -3.15 | AB121: 2.45 | AC121: -0.35
D122: 28 | E122: 2.4 | F122: 4.5 | G122: 6.5 | AA122: -5.55 | AB122: 0.05 | AC122: -2.75
D123: 29 | E123: 1.5 | F123: 8.3 | G123: 14.4 | AA123: -2.05 | AB123: 3.55 | AC123: 0.75
D124: 30 | E124: 9.4 | F124: 14.2 | G124: 19.9 | AA124: 4.65 | AB124: 10.25 | AC124: 7.45
C125: May | D125: 1 | E125: 12 | F125: 14.8 | G125: 18.5 | AA125: 5.25 | AB125: 10.85 | AC125: 8.05
D126: 2 | E126: 9.4 | F126: 17.9 | G126: 25.3 | AA126: 7.35 | AB126: 12.95 | AC126: 10.15
D127: 3 | E127: 9.8 | F127: 17.7 | G127: 23.4 | AA127: 6.6 | AB127: 12.2 | AC127: 9.4
D128: 4 | E128: 13.4 | F128: 17.6 | G128: 23.4 | AA128: 8.4 | AB128: 14 | AC128: 11.2
D129: 5 | E129: 13 | F129: 17.4 | G129: 23.6 | AA129: 8.3 | AB129: 13.9 | AC129: 11.1
D130: 6 | E130: 10.8 | F130: 15.2 | G130: 20.4 | AA130: 5.6 | AB130: 11.2 | AC130: 8.4
D131: 7 | E131: 7.8 | F131: 16.5 | G131: 23.4 | AA131: 5.6 | AB131: 11.2 | AC131: 8.4
D132: 8 | E132: 12.3 | F132: 16.6 | G132: 20.6 | AA132: 6.45 | AB132: 12.05 | AC132: 9.25
D133: 9 | E133: 13.2 | F133: 18.3 | G133: 25.2 | AA133: 9.2 | AB133: 14.8 | AC133: 12
D134: 10 | E134: 12 | F134: 21.4 | G134: 29.4 | AA134: 10.7 | AB134: 16.3 | AC134: 13.5
D135: 11 | E135: 12.1 | F135: 20.6 | G135: 27.9 | AA135: 10 | AB135: 15.6 | AC135: 12.8
D136: 12 | E136: 13.7 | F136: 20.3 | G136: 27.6 | AA136: 10.65 | AB136: 16.25 | AC136: 13.45
D137: 13 | E137: 16.8 | F137: 21.1 | G137: 25.5 | AA137: 11.15 | AB137: 16.75 | AC137: 13.95
D138: 14 | E138: 16.9 | F138: 21.9 | G138: 28.4 | AA138: 12.65 | AB138: 18.25 | AC138: 15.45
D139: 15 | E139: 14.9 | F139: 20.8 | G139: 27.8 | AA139: 11.35 | AB139: 16.95 | AC139: 14.15
D140: 16 | E140: 14.2 | F140: 19.6 | G140: 26.4 | AA140: 10.3 | AB140: 15.9 | AC140: 13.1
D141: 17 | E141: 11 | F141: 12.4 | G141: 14.4 | AA141: 2.7 | AB141: 8.3 | AC141: 5.5
D142: 18 | E142: 8.7 | F142: 14.1 | G142: 19.8 | AA142: 4.25 | AB142: 9.85 | AC142: 7.05
D143: 19 | E143: 9.2 | F143: 11.5 | G143: 16.4 | AA143: 2.8 | AB143: 8.4 | AC143: 5.6
D144: 20 | E144: 7.3 | F144: 11.4 | G144: 14.2 | AA144: 0.75 | AB144: 6.35 | AC144: 3.55
D145: 21 | E145: 4.8 | F145: 10.2 | G145: 13.4 | AA145: -0.9 | AB145: 4.7 | AC145: 1.9
D146: 22 | E146: 7.4 | F146: 12.1 | G146: 17.2 | AA146: 2.3 | AB146: 7.9 | AC146: 5.1
D147: 23 | E147: 5 | F147: 9.7 | G147: 14.6 | AA147: -0.2 | AB147: 5.4 | AC147: 2.6
D148: 24 | E148: 0.8 | F148: 11.8 | G148: 19.8 | AA148: 0.3 | AB148: 5.9 | AC148: 3.1
D149: 25 | E149: 8.2 | F149: 12.3 | G149: 18.4 | AA149: 3.3 | AB149: 8.9 | AC149: 6.1
D150: 26 | E150: 5.9 | F150: 13.4 | G150: 19.5 | AA150: 2.7 | AB150: 8.3 | AC150: 5.5
D151: 27 | E151: 12.3 | F151: 14.6 | G151: 17.5 | AA151: 4.9 | AB151: 10.5 | AC151: 7.7
D152: 28 | E152: 5.9 | F152: 13.4 | G152: 19.1 | AA152: 2.5 | AB152: 8.1 | AC152: 5.3
D153: 29 | E153: 7.9 | F153: 16.8 | G153: 24.8 | AA153: 6.35 | AB153: 11.95 | AC153: 9.15
D154: 30 | E154: 9.3 | F154: 13.3 | G154: 19.6 | AA154: 4.45 | AB154: 10.05 | AC154: 7.25
D155: 31 | E155: 10 | F155: 12.1 | G155: 16 | AA155: 3 | AB155: 8.6 | AC155: 5.8
C156: Jun. | D156: 1 | E156: 8 | F156: 12.5 | G156: 16.9 | AA156: 2.45 | AB156: 8.05 | AC156: 5.25
D157: 2 | E157: 5.8 | F157: 14.5 | G157: 21.3 | AA157: 3.55 | AB157: 9.15 | AC157: 6.35
D158: 3 | E158: 7.4 | F158: 16.7 | G158: 24.2 | AA158: 5.8 | AB158: 11.4 | AC158: 8.6
D159: 4 | E159: 10.1 | F159: 19.8 | G159: 27.3 | AA159: 8.7 | AB159: 14.3 | AC159: 11.5
D160: 5 | E160: 12.5 | F160: 18 | G160: 24.6 | AA160: 8.55 | AB160: 14.15 | AC160: 11.35
D161: 6 | E161: 11.6 | F161: 16.6 | G161: 20.5 | AA161: 6.05 | AB161: 11.65 | AC161: 8.85
D162: 7 | E162: 13.4 | F162: 18.4 | G162: 22.9 | AA162: 8.15 | AB162: 13.75 | AC162: 10.95
D163: 8 | E163: 12.1 | F163: 15.1 | G163: 19.8 | AA163: 5.95 | AB163: 11.55 | AC163: 8.75
D164: 9 | E164: 12.2 | F164: 17.3 | G164: 22 | AA164: 7.1 | AB164: 12.7 | AC164: 9.9
D165: 10 | E165: 11.2 | F165: 18.8 | G165: 25.1 | AA165: 8.15 | AB165: 13.75 | AC165: 10.95
D166: 11 | E166: 16 | F166: 19 | G166: 24.4 | AA166: 10.2 | AB166: 15.8 | AC166: 13
D167: 12 | E167: 9.2 | F167: 19.7 | G167: 27.2 | AA167: 8.2 | AB167: 13.8 | AC167: 11
D168: 13 | E168: 18 | F168: 22.2 | G168: 27.9 | AA168: 12.95 | AB168: 18.55 | AC168: 15.75
D169: 14 | E169: 13.9 | F169: 17.4 | G169: 20.3 | AA169: 7.1 | AB169: 12.7 | AC169: 9.9
D170: 15 | E170: 11.4 | F170: 13.1 | G170: 15 | AA170: 3.2 | AB170: 8.8 | AC170: 6
D171: 16 | E171: 9.4 | F171: 12.5 | G171: 16.3 | AA171: 2.85 | AB171: 8.45 | AC171: 5.65
D172: 17 | E172: 8.4 | F172: 11.2 | G172: 15.6 | AA172: 2 | AB172: 7.6 | AC172: 4.8
D173: 18 | E173: 8.2 | F173: 12.5 | G173: 16.2 | AA173: 2.2 | AB173: 7.8 | AC173: 5
D174: 19 | E174: 7.5 | F174: 14.8 | G174: 20.9 | AA174: 4.2 | AB174: 9.8 | AC174: 7
D175: 20 | E175: 12.7 | F175: 16.9 | G175: 22.4 | AA175: 7.55 | AB175: 13.15 | AC175: 10.35
D176: 21 | E176: 13.9 | F176: 16.6 | G176: 20.2 | AA176: 7.05 | AB176: 12.65 | AC176: 9.85
D177: 22 | E177: 10.8 | F177: 18.1 | G177: 23.4 | AA177: 7.1 | AB177: 12.7 | AC177: 9.9
D178: 23 | E178: 18.5 | F178: 20.7 | G178: 23.4 | AA178: 10.95 | AB178: 16.55 | AC178: 13.75
D179: 24 | E179: 17 | F179: 23.9 | G179: 30.1 | AA179: 13.55 | AB179: 19.15 | AC179: 16.35
D180: 25 | E180: 16.2 | F180: 17.6 | G180: 23.6 | AA180: 9.9 | AB180: 15.5 | AC180: 12.7
D181: 26 | E181: 13.9 | F181: 16.9 | G181: 20.4 | AA181: 7.15 | AB181: 12.75 | AC181: 9.95
D182: 27 | E182: 7.9 | F182: 15.3 | G182: 21.2 | AA182: 4.55 | AB182: 10.15 | AC182: 7.35
D183: 28 | E183: 11.4 | F183: 12.5 | G183: 14.7 | AA183: 3.05 | AB183: 8.65 | AC183: 5.85
D184: 29 | E184: 10.5 | F184: 11.4 | G184: 12.2 | AA184: 1.35 | AB184: 6.95 | AC184: 4.15
D185: 30 | E185: 11.4 | F185: 15.8 | G185: 21.3 | AA185: 6.35 | AB185: 11.95 | AC185: 9.15
C186: Jul. | D186: 1 | E186: 11 | F186: 16.7 | G186: 24.6 | AA186: 7.8 | AB186: 13.4 | AC186: 10.6
D187: 2 | E187: 12.4 | F187: 15.4 | G187: 21.3 | AA187: 6.85 | AB187: 12.45 | AC187: 9.65
D188: 3 | E188: 12.1 | F188: 17.4 | G188: 22.5 | AA188: 7.3 | AB188: 12.9 | AC188: 10.1
D189: 4 | E189: 13.6 | F189: 16.6 | G189: 21.1 | AA189: 7.35 | AB189: 12.95 | AC189: 10.15
D190: 5 | E190: 10 | F190: 17.4 | G190: 23.4 | AA190: 6.7 | AB190: 12.3 | AC190: 9.5
D191: 6 | E191: 14.6 | F191: 20.2 | G191: 26 | AA191: 10.3 | AB191: 15.9 | AC191: 13.1
D192: 7 | E192: 16 | F192: 22.6 | G192: 27.7 | AA192: 11.85 | AB192: 17.45 | AC192: 14.65
D193: 8 | E193: 18.4 | F193: 21.2 | G193: 24.4 | AA193: 11.4 | AB193: 17 | AC193: 14.2
D194: 9 | E194: 16.8 | F194: 24 | G194: 31.3 | AA194: 14.05 | AB194: 19.65 | AC194: 16.85
D195: 10 | E195: 20.9 | F195: 27.5 | G195: 33.4 | AA195: 17.15 | AB195: 22.75 | AC195: 19.95
D196: 11 | E196: 21.5 | F196: 28.5 | G196: 35.6 | AA196: 18.55 | AB196: 24.15 | AC196: 21.35
D197: 12 | E197: 22.5 | F197: 28.3 | G197: 33.4 | AA197: 17.95 | AB197: 23.55 | AC197: 20.75
D198: 13 | E198: 22 | F198: 23.8 | G198: 28.4 | AA198: 15.2 | AB198: 20.8 | AC198: 18
D199: 14 | E199: 15.5 | F199: 20.1 | G199: 23 | AA199: 9.25 | AB199: 14.85 | AC199: 12.05
D200: 15 | E200: 17 | F200: 19.4 | G200: 22.4 | AA200: 9.7 | AB200: 15.3 | AC200: 12.5
... 2050 more rows

Sheet Krasnodar Historic GDD
BA1: Year | BB1: Corn Yield | BC1: Winter Wheat Yield | BD1: Spring Wheat Yield | BE1: Potato Yield | CA1: Year | CB1: Corn Yield | CC1: Winter Wheat Yield | CD1: Spring Wheat Yield | CE1: Potato Yield
AA2: GDD | BA2: 1996 | BB2: 4.532161728 | BC2: 28.05177673 | BD2: 10.28735276 | BE2: 81.48135629 | CA2: 1996 | CB2: 47276721.99 | CC2: 27219.2 | CD2: 331.87 | CE2: 7713.84
E3: min | F3: ave | G3: max | AA3: Corn | AB3: Wheat | AC3: Potato | BA3: 1997 | BB3: 18.21497849 | BC3: 33.63916507 | BD3: 11.02586207 | BE3: 82.96239109 | CA3: 1997 | CB3: 56205039.35 | CC3: 36405.65 | CD3: 255.8 | CE3: 7522.2
B4: 1996 | C4: Jan.uary | D4: 1 | E4: -4.3 | F4: -3.4 | G4: -2.2 | AA4: -13.25 | AB4: -7.65 | AC4: -10.45 | BA4: 1998 | BB4: 5.210772378 | BC4: 29.02232655 | BD4: 13.37684004 | BE4: 76.36862699 | CA4: 1998 | CB4: 39573019.94 | CC4: 19225.55 | CD4: 408.93 | CE4: 6440.93
D5: 2 | E5: -3 | F5: -0.9 | G5: 3.3 | AA5: -9.85 | AB5: -4.25 | AC5: -7.05 | BA5: 1999 | BB5: 7.762538694 | BC5: 37.83191831 | BD5: 16.52339604 | BE5: 63.2616492 | CA5: 1999 | CB5: 44184417.52 | CC5: 41975.27 | CD5: 342.53 | CE5: 5009.69
D6: 3 | E6: -0.2 | F6: 1 | G6: 2.7 | AA6: -8.75 | AB6: -3.15 | AC6: -5.95 | BA6: 2000 | BB6: 10.0796834 | BC6: 38.79823167 | BD6: 20.40529189 | BE6: 73.23317788 | CA6: 2000 | CB6: 44952759.7 | CC6: 40283.04 | CD6: 485.85 | CE6: 5496.15
D7: 4 | E7: 1.2 | F7: 2.8 | G7: 5.8 | AA7: -6.5 | AB7: -0.9 | AC7: -3.7 | BA7: 2001 | BB7: 4.550638477 | BC7: 44.03750367 | BD7: 23.89879626 | BE7: 80.01377711 | CA7: 2001 | CB7: 37002360.53 | CC7: 52428.85 | CD7: 536.05 | CE7: 5865.81
D8: 5 | E8: -0.6 | F8: 0.5 | G8: 3.5 | AA8: -8.55 | AB8: -2.95 | AC8: -5.75 | BA8: 2002 | BB8: 13.03844175 | BC8: 47.17585542 | BD8: 23.87880597 | BE8: 76.26434196 | CA8: 2002 | CB8: 44835001.39 | CC8: 53591.3 | CD8: 399.97 | CE8: 5423.92
D9: 6 | E9: -1.8 | F9: -1.3 | G9: 0.5 | AA9: -10.65 | AB9: -5.05 | AC9: -7.85 | BA9: 2003 | BB9: 14.67444232 | BC9: 33.43527002 | BD9: 13.50440186 | BE9: 67.9049856 | CA9: 2003 | CB9: 36176793.78 | CC9: 27916.11 | CD9: 260.77 | CE9: 4481.05
D10: 7 | E10: -6.8 | F10: -3.9 | G10: -0.9 | AA10: -13.85 | AB10: -8.25 | AC10: -11.05 | BA10: 2004 | BB10: 27.26474652 | BC10: 43.04813 | BD10: 23.57955556 | BE10: 92.82778582 | CA10: 2004 | CB10: 41717340.8 | CC10: 44532.86 | CD10: 265.27 | CE10: 5772.96
D11: 8 | E11: -7.2 | F11: -4.4 | G11: 0.1 | AA11: -13.55 | AB11: -7.95 | AC11: -10.75 | BA11: 2005 | BB11: 26.07365775 | BC11: 46.65522591 | BD11: 27.29752954 | BE11: 88.42395105 | CA11: 2005 | CB11: 28295045.28 | CC11: 51124.33 | CD11: 254.14 | CE11: 5057.85
D12: 9 | E12: -7.8 | F12: -4 | G12: 1.5 | AA12: -13.15 | AB12: -7.55 | AC12: -10.35 | BA12: 2006 | BB12: 28.60770676 | BC12: 42.68859124 | BD12: 23.80025773 | BE12: 89.59974117 | CA12: 2006 | CB12: 26599362.65 | CC12: 45989.7 | CD12: 184.69 | CE12: 4846.45
D13: 10 | E13: -7.4 | F13: -3.7 | G13: 1.8 | AA13: -12.8 | AB13: -7.2 | AC13: -10 | BA13: 2007 | BB13: 15.44251234 | BC13: 45.11117621 | BD13: 22.49332146 | BE13: 78.96698023 | CA13: 2007 | CB13: 24825980 | CC13: 50050.85 | CD13: 252.6 | CE13: 4113.39
D14: 11 | E14: -5.2 | F14: -1.7 | G14: 3.2 | AA14: -11 | AB14: -5.4 | AC14: -8.2 | BA14: 2008 | BB14: 37.42445483 | BC14: 55.29032786 | BD14: 34.28235294 | BE14: 96.79584121 | CA14: 2008 | CB14: 30432526.5 | CC14: 67625.6 | CD14: 291.4 | CE14: 5120.5
D15: 12 | E15: -1.7 | F15: 0.4 | G15: 3.8 | AA15: -8.95 | AB15: -3.35 | AC15: -6.15 | BA15: 2009 | BB15: 24.22025913 | BC15: 45.69529022 | BD15: 26.98113208 | BE15: 93.85764499 | CA15: 2009 | CB15: 28431594.1 | CC15: 59280.5 | CD15: 143 | CE15: 5340.5
D16: 13 | E16: -5.2 | F16: -1.2 | G16: 3 | AA16: -11.1 | AB16: -5.5 | AC16: -8.3 | BA16: 2010 | BB16: 25.23317656 | BC16: 49.75034356 | BD16: 30.17741935 | BE16: 89.00338983 | CA16: 2010 | CB16: 20038748.9 | CC16: 65163 | CD16: 187.1 | CE16: 5251.2
D17: 14 | E17: -5.5 | F17: -2.1 | G17: 2.9 | AA17: -11.3 | AB17: -5.7 | AC17: -8.5 | BA17: 2011 | BB17: 37.37537438 | BC17: 55.12642535 | BD17: 32.23913043 | BE17: 96.46744574 | CA17: 2011 | CB17: 25635262.6 | CC17: 72033.7 | CD17: 148.3 | CE17: 5778.4
D18: 15 | E18: -4.1 | F18: -1.2 | G18: 2.6 | AA18: -10.75 | AB18: -5.15 | AC18: -7.95 | BA18: 2012 | BB18: 35.07109186 | BC18: 39.84038308 | BD18: 26.45098039 | BE18: 98.39763113 | CA18: 2012 | CB18: 20243327.3 | CC18: 44928 | CD18: 269.8 | CE18: 5815.3
D19: 16 | E19: -8.1 | F19: -5.2 | G19: 0.3 | AA19: -13.9 | AB19: -8.3 | AC19: -11.1 | BA19: 2013 | BB19: 45.66976422 | BC19: 50.14769941 | BD19: 27.46153846 | BE19: 100.0373665 | CA19: 2013 | CB19: 20653127.9 | CC19: 69534.8 | CD19: 142.8 | CE19: 5622.1
D20: 17 | E20: -6.2 | F20: -4.3 | G20: -1.9 | AA20: -14.05 | AB20: -8.45 | AC20: -11.25 | BA20: 2014 | BB20: 46.92117947 | BC20: 54.67575302 | BD20: 31.93333333 | BE20: 107.430605 | CA20: 2014 | CB20: 17071598.2 | CC20: 76420.3 | CD20: 95.8 | CE20: 6037.6
D21: 18 | E21: -4.7 | F21: -2.8 | G21: 0.4 | AA21: -12.15 | AB21: -6.55 | AC21: -9.35 | BA21: 2015 | BB21: 47.30035199 | BC21: 57.48913878 | BD21: 34.05948926 | BE21: 108.1576098 | CA21: 2015 | CB21: 18012361.86 | CC21: 84522.31 | CD21: 117.37 | CE21: 6154.168
D22: 19 | E22: -2.9 | F22: -1.8 | G22: -0.3 | AA22: -11.6 | AB22: -6 | AC22: -8.8 | BA22: 2016 | CA22: 2016
D23: 20 | E23: -4 | F23: -1.7 | G23: 0.2 | AA23: -11.9 | AB23: -6.3 | AC23: -9.1 | BA23: 2017 | BJ23: screen holder | CA23: 2017
D24: 21 | E24: -6.5 | F24: -5.6 | G24: -2.3 | AA24: -14.4 | AB24: -8.8 | AC24: -11.6
D25: 22 | E25: -8.3 | F25: -7.4 | G25: -5.9 | AA25: -17.1 | AB25: -11.5 | AC25: -14.3
D26: 23 | E26: -11.5 | F26: -7.9 | G26: -4.3 | AA26: -17.9 | AB26: -12.3 | AC26: -15.1 | BA26: Plant | BB26: init Plant Month | BC26: Initial Plant GDD | BD26: Avg time (days) | BE26: Min Avg Value | BF26: End | BG26: Temp Floor | BH26: Technique
D27: 24 | E27: -10.2 | F27: -6.9 | G27: -4.4 | AA27: -17.3 | AB27: -11.7 | AC27: -14.5 | BA27: Corn | BB27: 5 | BC27: 0 | BD27: 21 | BE27: 10 | BF27: 17,10 | BH27: 1
D28: 25 | E28: -7.7 | F28: -4.7 | G28: -0.6 | AA28: -14.15 | AB28: -8.55 | AC28: -11.35 | BA28: Winter Wheat | BB28: 3 | BC28: -5 | BD28: 14 | BF28: 17,7 | BG28: -5 | BH28: 2
D29: 26 | E29: -5.3 | F29: -1.1 | G29: 3.7 | AA29: -10.8 | AB29: -5.2 | AC29: -8 | BA29: Spring Wheat | BB29: 4 | BC29: -1.5 | BD29: 10 | BE29: 5.6 | BF29: 1,8 | BH29: 3
D30: 27 | E30: -3.9 | F30: -1 | G30: 2.9 | AA30: -10.5 | AB30: -4.9 | AC30: -7.7 | BA30: Potato | BB30: 4 | BC30: -2.8 | BD30: 7 | BE30: -2.8 | BF30: 10,9 | BG30: -2 | BH30: 1
D31: 28 | E31: -1.7 | F31: 0.6 | G31: 4.2 | AA31: -8.75 | AB31: -3.15 | AC31: -5.95
D32: 29 | E32: 1.1 | F32: 2.9 | G32: 6.8 | AA32: -6.05 | AB32: -0.45 | AC32: -3.25
D33: 30 | E33: 0.2 | F33: 1.7 | G33: 3.5 | AA33: -8.15 | AB33: -2.55 | AC33: -5.35
D34: 31 | E34: -4.5 | F34: -2 | G34: 0.2 | AA34: -12.15 | AB34: -6.55 | AC34: -9.35
C35: Feb.ruary | D35: 1 | E35: -10.7 | F35: -7.4 | G35: -3.5 | AA35: -17.1 | AB35: -11.5 | AC35: -14.3
D36: 2 | E36: -12.3 | F36: -5.8 | G36: 1.8 | AA36: -15.25 | AB36: -9.65 | AC36: -12.45
D37: 3 | E37: -5.2 | F37: -0.1 | G37: 4 | AA37: -10.6 | AB37: -5 | AC37: -7.8
D38: 4 | E38: -8.1 | F38: 0.2 | G38: 10 | AA38: -9.05 | AB38: -3.45 | AC38: -6.25
D39: 5 | E39: 1.3 | F39: 5.2 | G39: 11 | AA39: -3.85 | AB39: 1.75 | AC39: -1.05
D40: 6 | E40: -1.1 | F40: 2.2 | G40: 8.8 | AA40: -6.15 | AB40: -0.55 | AC40: -3.35
D41: 7 | E41: 2.1 | F41: 5.7 | G41: 9.6 | AA41: -4.15 | AB41: 1.45 | AC41: -1.35
D42: 8 | E42: -0.9 | F42: 2.2 | G42: 6.5 | AA42: -7.2 | AB42: -1.6 | AC42: -4.4
D43: 9 | E43: 1.9 | F43: 3.2 | G43: 5.5 | AA43: -6.3 | AB43: -0.7 | AC43: -3.5
D44: 10 | E44: -5.7 | F44: -2.9 | G44: 2.6 | AA44: -11.55 | AB44: -5.95 | AC44: -8.75
D45: 11 | E45: -10.1 | F45: -8.8 | G45: -5.6 | AA45: -17.85 | AB45: -12.25 | AC45: -15.05
D46: 12 | E46: -9.1 | F46: -7.2 | G46: -4.2 | AA46: -16.65 | AB46: -11.05 | AC46: -13.85
D47: 13 | E47: -8.2 | F47: -3.7 | G47: 0.7 | AA47: -13.75 | AB47: -8.15 | AC47: -10.95
D48: 14 | E48: -2 | F48: 0.5 | G48: 3.7 | AA48: -9.15 | AB48: -3.55 | AC48: -6.35
D49: 15 | E49: 0.2 | F49: 3.3 | G49: 10.2 | AA49: -4.8 | AB49: 0.8 | AC49: -2
D50: 16 | E50: -2.4 | F50: 0 | G50: 8.4 | AA50: -7 | AB50: -1.4 | AC50: -4.2
D51: 17 | E51: -1.2 | F51: 1.7 | G51: 7 | AA51: -7.1 | AB51: -1.5 | AC51: -4.3
D52: 18 | E52: 0.6 | F52: 4.2 | G52: 9.2 | AA52: -5.1 | AB52: 0.5 | AC52: -2.3
D53: 19 | E53: -0.2 | F53: 4.2 | G53: 10.1 | AA53: -5.05 | AB53: 0.55 | AC53: -2.25
D54: 20 | E54: -0.2 | F54: 3.8 | G54: 10.6 | AA54: -4.8 | AB54: 0.8 | AC54: -2
D55: 21 | E55: -0.7 | F55: 5 | G55: 16.1 | AA55: -2.3 | AB55: 3.3 | AC55: 0.5
D56: 22 | E56: 1 | F56: 9 | G56: 19.4 | AA56: 0.2 | AB56: 5.8 | AC56: 3
D57: 23 | E57: 3.2 | F57: 8.8 | G57: 16.7 | AA57: -0.05 | AB57: 5.55 | AC57: 2.75
D58: 24 | E58: 4.2 | F58: 7 | G58: 14.3 | AA58: -0.75 | AB58: 4.85 | AC58: 2.05
D59: 25 | E59: 2.5 | F59: 4.7 | G59: 9.2 | AA59: -4.15 | AB59: 1.45 | AC59: -1.35
D60: 26 | E60: -1.2 | F60: 0.8 | G60: 4.7 | AA60: -8.25 | AB60: -2.65 | AC60: -5.45
D61: 27 | E61: -1.2 | F61: 0.4 | G61: 2.3 | AA61: -9.45 | AB61: -3.85 | AC61: -6.65
D62: 28 | E62: -0.8 | F62: 1.6 | G62: 4 | AA62: -8.4 | AB62: -2.8 | AC62: -5.6
D63: 29 | E63: 0.1 | F63: 1.8 | G63: 4.3 | AA63: -7.8 | AB63: -2.2 | AC63: -5
C64: Mar. | D64: 1 | E64: -0.1 | F64: 2 | G64: 5.3 | AA64: -7.4 | AB64: -1.8 | AC64: -4.6
D65: 2 | E65: -0.1 | F65: 1.3 | G65: 4.2 | AA65: -7.95 | AB65: -2.35 | AC65: -5.15
D66: 3 | E66: -0.8 | F66: 4 | G66: 11.5 | AA66: -4.65 | AB66: 0.95 | AC66: -1.85
D67: 4 | E67: -0.8 | F67: 1.7 | G67: 10.9 | AA67: -4.95 | AB67: 0.65 | AC67: -2.15
D68: 5 | E68: -1.7 | F68: 1.3 | G68: 4.6 | AA68: -8.55 | AB68: -2.95 | AC68: -5.75
D69: 6 | E69: 0.3 | F69: 0.9 | G69: 3.8 | AA69: -7.95 | AB69: -2.35 | AC69: -5.15
D70: 7 | E70: -0.6 | F70: 0.2 | G70: 1.6 | AA70: -9.5 | AB70: -3.9 | AC70: -6.7
D71: 8 | E71: -2.7 | F71: -1.2 | G71: 0.5 | AA71: -11.1 | AB71: -5.5 | AC71: -8.3
D72: 9 | E72: -4.2 | F72: -1.9 | G72: -0.1 | AA72: -12.15 | AB72: -6.55 | AC72: -9.35
D73: 10 | E73: -4.4 | F73: -2.2 | G73: 0.9 | AA73: -11.75 | AB73: -6.15 | AC73: -8.95
D74: 11 | E74: -0.6 | F74: 1.2 | G74: 4.8 | AA74: -7.9 | AB74: -2.3 | AC74: -5.1
D75: 12 | E75: 0.3 | F75: 1.4 | G75: 4.8 | AA75: -7.45 | AB75: -1.85 | AC75: -4.65
D76: 13 | E76: 0.4 | F76: 1.6 | G76: 3.1 | AA76: -8.25 | AB76: -2.65 | AC76: -5.45
D77: 14 | E77: 0.7 | F77: 2.1 | G77: 5 | AA77: -7.15 | AB77: -1.55 | AC77: -4.35
D78: 15 | E78: 0.9 | F78: 4.6 | G78: 11.4 | AA78: -3.85 | AB78: 1.75 | AC78: -1.05
D79: 16 | E79: 1.3 | F79: 5 | G79: 9.6 | AA79: -4.55 | AB79: 1.05 | AC79: -1.75
D80: 17 | E80: -1.7 | F80: 4 | G80: 9.9 | AA80: -5.9 | AB80: -0.3 | AC80: -3.1
D81: 18 | E81: -1.8 | F81: 3 | G81: 8.4 | AA81: -6.7 | AB81: -1.1 | AC81: -3.9
D82: 19 | E82: 0.7 | F82: 4.6 | G82: 9.6 | AA82: -4.85 | AB82: 0.75 | AC82: -2.05
D83: 20 | E83: 0.5 | F83: 5.2 | G83: 10.3 | AA83: -4.6 | AB83: 1 | AC83: -1.8
D84: 21 | E84: 1.6 | F84: 6.1 | G84: 12 | AA84: -3.2 | AB84: 2.4 | AC84: -0.4
D85: 22 | E85: 4.3 | F85: 7.6 | G85: 12.2 | AA85: -1.75 | AB85: 3.85 | AC85: 1.05
D86: 23 | E86: 2.8 | F86: 7.4 | G86: 12.2 | AA86: -2.5 | AB86: 3.1 | AC86: 0.3
D87: 24 | E87: 3.8 | F87: 7 | G87: 11.4 | AA87: -2.4 | AB87: 3.2 | AC87: 0.4
D88: 25 | E88: 3.2 | F88: 5.9 | G88: 9.5 | AA88: -3.65 | AB88: 1.95 | AC88: -0.85
D89: 26 | E89: 1 | F89: 4.3 | G89: 8 | AA89: -5.5 | AB89: 0.1 | AC89: -2.7
D90: 27 | E90: -1.8 | F90: 3.3 | G90: 8.7 | AA90: -6.55 | AB90: -0.95 | AC90: -3.75
D91: 28 | E91: 1 | F91: 6.4 | G91: 14.1 | AA91: -2.45 | AB91: 3.15 | AC91: 0.35
D92: 29 | E92: 4.4 | F92: 6.3 | G92: 12.5 | AA92: -1.55 | AB92: 4.05 | AC92: 1.25
D93: 30 | E93: 4.7 | F93: 7.5 | G93: 12.4 | AA93: -1.45 | AB93: 4.15 | AC93: 1.35
D94: 31 | E94: 7.5 | F94: 9.1 | G94: 12.7 | AA94: 0.1 | AB94: 5.7 | AC94: 2.9
C95: Apr. | D95: 1 | E95: 4.8 | F95: 11.4 | G95: 19.6 | AA95: 2.2 | AB95: 7.8 | AC95: 5
D96: 2 | E96: 7.2 | F96: 10.2 | G96: 18.6 | AA96: 2.9 | AB96: 8.5 | AC96: 5.7
D97: 3 | E97: 7.8 | F97: 11.1 | G97: 17.2 | AA97: 2.5 | AB97: 8.1 | AC97: 5.3
D98: 4 | E98: 3.4 | F98: 11.3 | G98: 18.1 | AA98: 0.75 | AB98: 6.35 | AC98: 3.55
D99: 5 | E99: 3.4 | F99: 10.6 | G99: 18.3 | AA99: 0.85 | AB99: 6.45 | AC99: 3.65
D100: 6 | E100: 3.5 | F100: 9.8 | G100: 17.3 | AA100: 0.4 | AB100: 6 | AC100: 3.2
D101: 7 | E101: 5 | F101: 9.6 | G101: 15.7 | AA101: 0.35 | AB101: 5.95 | AC101: 3.15
D102: 8 | E102: 7 | F102: 9.8 | G102: 12.6 | AA102: -0.2 | AB102: 5.4 | AC102: 2.6
D103: 9 | E103: 3.5 | F103: 7.4 | G103: 12.7 | AA103: -1.9 | AB103: 3.7 | AC103: 0.9
D104: 10 | E104: 7.5 | F104: 9.5 | G104: 12.2 | AA104: -0.15 | AB104: 5.45 | AC104: 2.65
D105: 11 | E105: 5.4 | F105: 8.7 | G105: 12.5 | AA105: -1.05 | AB105: 4.55 | AC105: 1.75
D106: 12 | E106: 4 | F106: 9.8 | G106: 16.3 | AA106: 0.15 | AB106: 5.75 | AC106: 2.95
D107: 13 | E107: 6.7 | F107: 9.1 | G107: 15.1 | AA107: 0.9 | AB107: 6.5 | AC107: 3.7
D108: 14 | E108: 5.7 | F108: 8.1 | G108: 12.6 | AA108: -0.85 | AB108: 4.75 | AC108: 1.95
D109: 15 | E109: 3.7 | F109: 10.7 | G109: 19.7 | AA109: 1.7 | AB109: 7.3 | AC109: 4.5
D110: 16 | E110: 8 | F110: 14.3 | G110: 20.7 | AA110: 4.35 | AB110: 9.95 | AC110: 7.15
D111: 17 | E111: 7.8 | F111: 10.5 | G111: 18.1 | AA111: 2.95 | AB111: 8.55 | AC111: 5.75
D112: 18 | E112: 6 | F112: 7.5 | G112: 9.9 | AA112: -2.05 | AB112: 3.55 | AC112: 0.75
D113: 19 | E113: 5.4 | F113: 8.5 | G113: 12.7 | AA113: -0.95 | AB113: 4.65 | AC113: 1.85
D114: 20 | E114: 3.5 | F114: 8.9 | G114: 13.1 | AA114: -1.7 | AB114: 3.9 | AC114: 1.1
D115: 21 | E115: 5.7 | F115: 10 | G115: 16 | AA115: 0.85 | AB115: 6.45 | AC115: 3.65
D116: 22 | E116: 6.8 | F116: 8.5 | G116: 13.1 | AA116: -0.05 | AB116: 5.55 | AC116: 2.75
D117: 23 | E117: 5 | F117: 10.2 | G117: 17.2 | AA117: 1.1 | AB117: 6.7 | AC117: 3.9
D118: 24 | E118: 6.9 | F118: 13 | G118: 20.4 | AA118: 3.65 | AB118: 9.25 | AC118: 6.45
D119: 25 | E119: 8.6 | F119: 14.6 | G119: 22.7 | AA119: 5.65 | AB119: 11.25 | AC119: 8.45
D120: 26 | E120: 9.8 | F120: 14.4 | G120: 21.3 | AA120: 5.55 | AB120: 11.15 | AC120: 8.35
D121: 27 | E121: 11 | F121: 16.2 | G121: 23.3 | AA121: 7.15 | AB121: 12.75 | AC121: 9.95
D122: 28 | E122: 10.7 | F122: 15.2 | G122: 21.1 | AA122: 5.9 | AB122: 11.5 | AC122: 8.7
D123: 29 | E123: 7.3 | F123: 14.4 | G123: 21.1 | AA123: 4.2 | AB123: 9.8 | AC123: 7
D124: 30 | E124: 9.2 | F124: 15.5 | G124: 21 | AA124: 5.1 | AB124: 10.7 | AC124: 7.9
C125: May | D125: 1 | E125: 13.2 | F125: 18.5 | G125: 25.1 | AA125: 9.15 | AB125: 14.75 | AC125: 11.95
D126: 2 | E126: 10.4 | F126: 16.5 | G126: 23.1 | AA126: 6.75 | AB126: 12.35 | AC126: 9.55
D127: 3 | E127: 13.4 | F127: 16.5 | G127: 21.1 | AA127: 7.25 | AB127: 12.85 | AC127: 10.05
D128: 4 | E128: 12.4 | F128: 18.4 | G128: 27.1 | AA128: 9.75 | AB128: 15.35 | AC128: 12.55
D129: 5 | E129: 12.7 | F129: 20 | G129: 27.5 | AA129: 10.1 | AB129: 15.7 | AC129: 12.9
D130: 6 | E130: 14.5 | F130: 18.8 | G130: 26.7 | AA130: 10.6 | AB130: 16.2 | AC130: 13.4
D131: 7 | E131: 13.8 | F131: 20.4 | G131: 26.8 | AA131: 10.3 | AB131: 15.9 | AC131: 13.1
D132: 8 | E132: 13.6 | F132: 21.4 | G132: 28.1 | AA132: 10.85 | AB132: 16.45 | AC132: 13.65
D133: 9 | E133: 15.7 | F133: 22.6 | G133: 29.6 | AA133: 12.65 | AB133: 18.25 | AC133: 15.45
D134: 10 | E134: 17.2 | F134: 23.4 | G134: 29.8 | AA134: 13.5 | AB134: 19.1 | AC134: 16.3
D135: 11 | E135: 18.9 | F135: 23.5 | G135: 30.5 | AA135: 14.7 | AB135: 20.3 | AC135: 17.5
D136: 12 | E136: 18.7 | F136: 23.8 | G136: 29.7 | AA136: 14.2 | AB136: 19.8 | AC136: 17
D137: 13 | E137: 19.3 | F137: 21.5 | G137: 28.1 | AA137: 13.7 | AB137: 19.3 | AC137: 16.5
D138: 14 | E138: 14.9 | F138: 20.8 | G138: 26.3 | AA138: 10.6 | AB138: 16.2 | AC138: 13.4
D139: 15 | E139: 16.5 | F139: 20.3 | G139: 26.3 | AA139: 11.4 | AB139: 17 | AC139: 14.2
D140: 16 | E140: 17.1 | F140: 18.5 | G140: 24.1 | AA140: 10.6 | AB140: 16.2 | AC140: 13.4
D141: 17 | E141: 15.2 | F141: 18.4 | G141: 23.7 | AA141: 9.45 | AB141: 15.05 | AC141: 12.25
D142: 18 | E142: 15 | F142: 19.3 | G142: 24.8 | AA142: 9.9 | AB142: 15.5 | AC142: 12.7
D143: 19 | E143: 15.4 | F143: 20.7 | G143: 27 | AA143: 11.2 | AB143: 16.8 | AC143: 14
D144: 20 | E144: 15.7 | F144: 20.5 | G144: 26 | AA144: 10.85 | AB144: 16.45 | AC144: 13.65
D145: 21 | E145: 15.4 | F145: 20.3 | G145: 24.4 | AA145: 9.9 | AB145: 15.5 | AC145: 12.7
D146: 22 | E146: 17.9 | F146: 20.2 | G146: 23.6 | AA146: 10.75 | AB146: 16.35 | AC146: 13.55
D147: 23 | E147: 11.3 | F147: 17 | G147: 22.1 | AA147: 6.7 | AB147: 12.3 | AC147: 9.5
D148: 24 | E148: 11 | F148: 16 | G148: 21 | AA148: 6 | AB148: 11.6 | AC148: 8.8
D149: 25 | E149: 12.1 | F149: 16.2 | G149: 22.5 | AA149: 7.3 | AB149: 12.9 | AC149: 10.1
D150: 26 | E150: 11.5 | F150: 17.6 | G150: 23.7 | AA150: 7.6 | AB150: 13.2 | AC150: 10.4
D151: 27 | E151: 14 | F151: 20.2 | G151: 28.2 | AA151: 11.1 | AB151: 16.7 | AC151: 13.9
D152: 28 | E152: 16.2 | F152: 18.7 | G152: 26.7 | AA152: 11.45 | AB152: 17.05 | AC152: 14.25
D153: 29 | E153: 14.9 | F153: 19.6 | G153: 26.1 | AA153: 10.5 | AB153: 16.1 | AC153: 13.3
D154: 30 | E154: 15.6 | F154: 20.8 | G154: 27.9 | AA154: 11.75 | AB154: 17.35 | AC154: 14.55
D155: 31 | E155: 16.2 | F155: 20.2 | G155: 26.1 | AA155: 11.15 | AB155: 16.75 | AC155: 13.95
C156: Jun. | D156: 1 | E156: 13.8 | F156: 18.1 | G156: 25.5 | AA156: 9.65 | AB156: 15.25 | AC156: 12.45
D157: 2 | E157: 10.2 | F157: 14.3 | G157: 18.8 | AA157: 4.5 | AB157: 10.1 | AC157: 7.3
D158: 3 | E158: 11 | F158: 15.8 | G158: 20 | AA158: 5.5 | AB158: 11.1 | AC158: 8.3
D159: 4 | E159: 11.7 | F159: 14.7 | G159: 19.6 | AA159: 5.65 | AB159: 11.25 | AC159: 8.45
D160: 5 | E160: 12.7 | F160: 15.9 | G160: 20.6 | AA160: 6.65 | AB160: 12.25 | AC160: 9.45
D161: 6 | E161: 15.2 | F161: 16.7 | G161: 19.8 | AA161: 7.5 | AB161: 13.1 | AC161: 10.3
D162: 7 | E162: 14.1 | F162: 17.8 | G162: 22.4 | AA162: 8.25 | AB162: 13.85 | AC162: 11.05
D163: 8 | E163: 15.4 | F163: 20 | G163: 25.5 | AA163: 10.45 | AB163: 16.05 | AC163: 13.25
D164: 9 | E164: 16.6 | F164: 20 | G164: 23.3 | AA164: 9.95 | AB164: 15.55 | AC164: 12.75
D165: 10 | E165: 14.1 | F165: 20.3 | G165: 26.5 | AA165: 10.3 | AB165: 15.9 | AC165: 13.1
D166: 11 | E166: 14.3 | F166: 21.6 | G166: 27.6 | AA166: 10.95 | AB166: 16.55 | AC166: 13.75
D167: 12 | E167: 15.2 | F167: 22.6 | G167: 28.4 | AA167: 11.8 | AB167: 17.4 | AC167: 14.6
D168: 13 | E168: 17 | F168: 24.4 | G168: 30.4 | AA168: 13.7 | AB168: 19.3 | AC168: 16.5
D169: 14 | E169: 18.7 | F169: 24.2 | G169: 29.8 | AA169: 14.25 | AB169: 19.85 | AC169: 17.05
D170: 15 | E170: 17.6 | F170: 22 | G170: 28 | AA170: 12.8 | AB170: 18.4 | AC170: 15.6
D171: 16 | E171: 17.2 | F171: 18.6 | G171: 21.4 | AA171: 9.3 | AB171: 14.9 | AC171: 12.1
D172: 17 | E172: 14.6 | F172: 16.1 | G172: 20.4 | AA172: 7.5 | AB172: 13.1 | AC172: 10.3
D173: 18 | E173: 12.5 | F173: 16.2 | G173: 22.2 | AA173: 7.35 | AB173: 12.95 | AC173: 10.15
D174: 19 | E174: 12 | F174: 18 | G174: 23.9 | AA174: 7.95 | AB174: 13.55 | AC174: 10.75
D175: 20 | E175: 13.6 | F175: 20.2 | G175: 26 | AA175: 9.8 | AB175: 15.4 | AC175: 12.6
D176: 21 | E176: 17.6 | F176: 20.5 | G176: 25.1 | AA176: 11.35 | AB176: 16.95 | AC176: 14.15
D177: 22 | E177: 14.1 | F177: 19.9 | G177: 26.3 | AA177: 10.2 | AB177: 15.8 | AC177: 13
D178: 23 | E178: 16.2 | F178: 23 | G178: 34 | AA178: 15.1 | AB178: 20.7 | AC178: 17.9
D179: 24 | E179: 18.9 | F179: 24.9 | G179: 31.2 | AA179: 15.05 | AB179: 20.65 | AC179: 17.85
D180: 25 | E180: 18.7 | F180: 25.4 | G180: 31.5 | AA180: 15.1 | AB180: 20.7 | AC180: 17.9
D181: 26 | E181: 20.2 | F181: 26.2 | G181: 32.5 | AA181: 16.35 | AB181: 21.95 | AC181: 19.15
D182: 27 | E182: 20.6 | F182: 27.5 | G182: 33.6 | AA182: 17.1 | AB182: 22.7 | AC182: 19.9
D183: 28 | E183: 21 | F183: 26.1 | G183: 33.6 | AA183: 17.3 | AB183: 22.9 | AC183: 20.1
D184: 29 | E184: 20.1 | F184: 22.1 | G184: 27.8 | AA184: 13.95 | AB184: 19.55 | AC184: 16.75
D185: 30 | E185: 17.1 | F185: 21.3 | G185: 26.5 | AA185: 11.8 | AB185: 17.4 | AC185: 14.6
C186: Jul. | D186: 1 | E186: 15.7 | F186: 23.1 | G186: 29.1 | AA186: 12.4 | AB186: 18 | AC186: 15.2
D187: 2 | E187: 16.9 | F187: 23.6 | G187: 29.7 | AA187: 13.3 | AB187: 18.9 | AC187: 16.1
D188: 3 | E188: 17.1 | F188: 25.2 | G188: 32.6 | AA188: 14.85 | AB188: 20.45 | AC188: 17.65
D189: 4 | E189: 19.7 | F189: 28.1 | G189: 36.5 | AA189: 18.1 | AB189: 23.7 | AC189: 20.9
D190: 5 | E190: 22.5 | F190: 29.3 | G190: 36.6 | AA190: 19.55 | AB190: 25.15 | AC190: 22.35
D191: 6 | E191: 22.7 | F191: 28.7 | G191: 35 | AA191: 18.85 | AB191: 24.45 | AC191: 21.65
D192: 7 | E192: 21.6 | F192: 29.1 | G192: 35.3 | AA192: 18.45 | AB192: 24.05 | AC192: 21.25
D193: 8 | E193: 21.6 | F193: 28.7 | G193: 34.6 | AA193: 18.1 | AB193: 23.7 | AC193: 20.9
D194: 9 | E194: 24.3 | F194: 29 | G194: 34.3 | AA194: 19.3 | AB194: 24.9 | AC194: 22.1
D195: 10 | E195: 23.7 | F195: 29.5 | G195: 35.6 | AA195: 19.65 | AB195: 25.25 | AC195: 22.45
D196: 11 | E196: 24.1 | F196: 30.1 | G196: 37.1 | AA196: 20.6 | AB196: 26.2 | AC196: 23.4
D197: 12 | E197: 26.6 | F197: 30.6 | G197: 36.1 | AA197: 21.35 | AB197: 26.95 | AC197: 24.15
D198: 13 | E198: 23.9 | F198: 30.4 | G198: 36.4 | AA198: 20.15 | AB198: 25.75 | AC198: 22.95
D199: 14 | E199: 22.3 | F199: 29.8 | G199: 37.3 | AA199: 19.8 | AB199: 25.4 | AC199: 22.6
D200: 15 | E200: 20.5 | F200: 29.6 | G200: 37.2 | AA200: 18.85 | AB200: 24.45 | AC200: 21.65
... 2050 more rows

Sheet Omsk Historic GDD
BA1: Year | BB1: Corn Yield | BC1: Winter Wheat Yield | BD1: Spring Wheat Yield | BE1: Potato Yield | CA1: Year | CB1: Corn Yield | CC1: Winter Wheat Yield | CD1: Spring Wheat Yield | CE1: Potato Yield
AA2: GDD | BA2: 1996 | BB2: 183.3478783 | BC2: 11.85433071 | BD2: 13.20001105 | BE2: 118.2247959 | CA2: 1996 | CB2: 38195.03 | CC2: 30.11 | CD2: 19105.3 | CE2: 6226.9
E3: min | F3: ave | G3: max | AA3: Corn | AB3: Wheat | AC3: Potato | BA3: 1997 | BB3: 81.84371933 | BC3: 9.902912621 | BD3: 11.80375322 | BE3: 138.4955459 | CA3: 1997 | CB3: 13343.8 | CC3: 10.2 | CD3: 17322.48 | CE3: 6685.18
B4: 1996 | C4: Jan.uary | D4: 1 | E4: -21.5 | F4: -18 | G4: -13.6 | AA4: -27.55 | AB4: -21.95 | AC4: -24.75 | BA4: 1998 | BB4: 82.88879032 | BC4: 1.875 | BD4: 7.694207048 | BE4: 82.66017406 | CA4: 1998 | CB4: 13080.68 | CC4: 0.15 | CD4: 10641.55 | CE4: 3989.18
D5: 2 | E5: -14.9 | F5: -12.7 | G5: -6.9 | AA5: -20.9 | AB5: -15.3 | AC5: -18.1 | BA5: 1999 | BB5: 54.48753347 | BC5: 17.9047619 | BD5: 8.934909077 | BE5: 87.77502691 | CA5: 1999 | CB5: 9156.63 | CC5: 3.76 | CD5: 11472.87 | CE5: 4077.15
D6: 3 | E6: -18 | F6: -16.4 | G6: -13.5 | AA6: -25.75 | AB6: -20.15 | AC6: -22.95 | BA6: 2000 | BB6: 109.0613541 | BC6: 35.75 | BD6: 9.173915704 | BE6: 109.6731931 | CA6: 2000 | CB6: 12016.38 | CC6: 7.15 | CD6: 11993.06 | CE6: 5265.41
D7: 4 | E7: -15.6 | F7: -14 | G7: -11.5 | AA7: -23.55 | AB7: -17.95 | AC7: -20.75 | BA7: 2001 | BB7: 160.2875427 | BC7: 16.76190476 | BD7: 19.16177844 | BE7: 161.7067181 | CA7: 2001 | CB7: 16907.13 | CC7: 10.56 | CD7: 26884.55 | CE7: 7967.29
D8: 5 | E8: -22.2 | F8: -19 | G8: -14.2 | AA8: -28.2 | AB8: -22.6 | AC8: -25.4 | BA8: 2002 | BB8: 125.3224837 | BC8: 28.13772455 | BD8: 12.46694581 | BE8: 164.4442157 | CA8: 2002 | CB8: 9587.17 | CC8: 46.99 | CD8: 18579.24 | CE8: 7988.7
D9: 6 | E9: -18 | F9: -16.4 | G9: -13.6 | AA9: -25.8 | AB9: -20.2 | AC9: -23 | BA9: 2003 | BB9: 121.7716474 | BC9: 23.24216524 | BD9: 11.93963131 | BE9: 181.176915 | CA9: 2003 | CB9: 6201.83 | CC9: 81.58 | CD9: 17467.8 | CE9: 8633.08
D10: 7 | E10: -17.1 | F10: -15.8 | G10: -14.5 | AA10: -25.8 | AB10: -20.2 | AC10: -23 | BA10: 2004 | BB10: 100.2182521 | BC10: 14.6391129 | BD10: 14.23197959 | BE10: 176.266738 | CA10: 2004 | CB10: 6226.56 | CC10: 72.61 | CD10: 21870.71 | CE10: 8240.47
D11: 8 | E11: -29.3 | F11: -23.6 | G11: -15.1 | AA11: -32.2 | AB11: -26.6 | AC11: -29.4 | BA11: 2005 | BB11: 147.6458606 | BC11: 17.49206349 | BD11: 13.45242647 | BE11: 185.5719622 | CA11: 2005 | CB11: 10147.7 | CC11: 44.08 | CD11: 21602.31 | CE11: 8445.38
D12: 9 | E12: -36 | F12: -33 | G12: -29.1 | AA12: -42.55 | AB12: -36.95 | AC12: -39.75 | BA12: 2006 | BB12: 123.3277838 | BC12: 14.51028807 | BD12: 13.72159528 | BE12: 191.0641831 | CA12: 2006 | CB12: 5703.91 | CC12: 35.26 | CD12: 21059.63 | CE12: 8513.82
D13: 10 | E13: -37.4 | F13: -33.6 | G13: -30 | AA13: -43.7 | AB13: -38.1 | AC13: -40.9 | BA13: 2007 | BB13: 161.7055815 | BC13: 15.94537815 | BD13: 14.9830557 | BE13: 191.1795712 | CA13: 2007 | CB13: 7271.9 | CC13: 37.95 | CD13: 21964.86 | CE13: 7580.27
D14: 11 | E14: -32.4 | F14: -30.3 | G14: -26.1 | AA14: -39.25 | AB14: -33.65 | AC14: -36.45 | BA14: 2008 | BB14: 84.41091954 | BC14: 10.76666667 | BD14: 10.89135837 | BE14: 172.8062361 | CA14: 2008 | CB14: 2937.5 | CC14: 32.3 | CD14: 15779.4 | CE14: 7759
D15: 12 | E15: -34.7 | F15: -31 | G15: -26 | AA15: -40.35 | AB15: -34.75 | AC15: -37.55 | BA15: 2009 | BB15: 169.1982183 | BC15: 13.33333333 | BD15: 18.53917519 | BE15: 185.5281385 | CA15: 2009 | CB15: 7597 | CC15: 48 | CD15: 29175.1 | CE15: 8571.4
D16: 13 | E16: -28.3 | F16: -24 | G16: -19.1 | AA16: -33.7 | AB16: -28.1 | AC16: -30.9 | BA16: 2010 | BB16: 57.08358209 | BC16: 10.625 | BD16: 11.59084001 | BE16: 171.2376682 | CA16: 2010 | CB16: 1912.3 | CC16: 8.5 | CD16: 16778.9 | CE16: 7637.2
D17: 14 | E17: -19.3 | F17: -15.3 | G17: -11.5 | AA17: -25.4 | AB17: -19.8 | AC17: -22.6 | BA17: 2011 | BB17: 164.9635193 | BC17: 28 | BD17: 16.76653883 | BE17: 194.5139186 | CA17: 2011 | CB17: 7687.3 | CC17: 11.2 | CD17: 24482.5 | CE17: 9083.8
D18: 15 | E18: -11.8 | F18: -9.6 | G18: -8.2 | AA18: -20 | AB18: -14.4 | AC18: -17.2 | BA18: 2012 | BB18: 71.03571429 | BC18: 17.57894737 | BD18: 8.124458118 | BE18: 104.5382932 | CA18: 2012 | CB18: 2585.7 | CC18: 33.4 | CD18: 11619.6 | CE18: 4777.4
D19: 16 | E19: -24.6 | F19: -17.4 | G19: -9.5 | AA19: -27.05 | AB19: -21.45 | AC19: -24.25 | BA19: 2013 | BB19: 165.0652632 | BC19: 29.83333333 | BD19: 15.44089191 | BE19: 177.1848552 | CA19: 2013 | CB19: 7840.6 | CC19: 17.9 | CD19: 24098.6 | CE19: 7955.6
D20: 17 | E20: -24.8 | F20: -24.3 | G20: -22.5 | AA20: -33.65 | AB20: -28.05 | AC20: -30.85 | BA20: 2014 | BB20: 84.08563536 | BC20: 22.91666667 | BD20: 13.95161191 | BE20: 179.5991091 | CA20: 2014 | CB20: 3043.9 | CC20: 27.5 | CD20: 22720.2 | CE20: 8064
D21: 18 | E21: -26.7 | F21: -24.9 | G21: -21.7 | AA21: -34.2 | AB21: -28.6 | AC21: -31.4 | BA21: 2015 | BB21: 156.1561014 | BC21: 20.9800995 | BD21: 15.12209479 | BE21: 180.3589544 | CA21: 2015 | CB21: 6109.139 | CC21: 50.604 | CD21: 24637.31 | CE21: 8093.067
D22: 19 | E22: -26.3 | F22: -25.1 | G22: -22.6 | AA22: -34.45 | AB22: -28.85 | AC22: -31.65 | BA22: 2016 | CA22: 2016
D23: 20 | E23: -25.7 | F23: -23.5 | G23: -20.7 | AA23: -33.2 | AB23: -27.6 | AC23: -30.4 | BA23: 2017 | CA23: 2017
D24: 21 | E24: -27.8 | F24: -23.4 | G24: -18.2 | AA24: -33 | AB24: -27.4 | AC24: -30.2
D25: 22 | E25: -20.9 | F25: -17 | G25: -13.7 | AA25: -27.3 | AB25: -21.7 | AC25: -24.5
D26: 23 | E26: -25.4 | F26: -18.8 | G26: -12.7 | AA26: -29.05 | AB26: -23.45 | AC26: -26.25 | BA26: Plant | BB26: init Plant Month | BC26: Initial Plant GDD | BD26: Avg time (days) | BE26: Min Avg Value | BF26: End | BG26: Temp Floor | BH26: Technique
D27: 24 | E27: -20.5 | F27: -17.4 | G27: -12.9 | AA27: -26.7 | AB27: -21.1 | AC27: -23.9 | BA27: Corn | BB27: 5 | BC27: 0 | BD27: 21 | BE27: 10 | BF27: 7,9 | BH27: 1
D28: 25 | E28: -14.7 | F28: -11.8 | G28: -9.1 | AA28: -21.9 | AB28: -16.3 | AC28: -19.1 | BA28: Winter Wheat | BB28: 3 | BC28: -5 | BD28: 14 | BF28: 1,8 | BG28: -5 | BH28: 2
D29: 26 | E29: -27.5 | F29: -17.7 | G29: -10.1 | AA29: -28.8 | AB29: -23.2 | AC29: -26 | BA29: Spring Wheat | BB29: 5 | BC29: -1.5 | BD29: 10 | BE29: 5.6 | BF29: 27,8 | BH29: 3
D30: 27 | E30: -31.4 | F30: -27.8 | G30: -22.2 | AA30: -36.8 | AB30: -31.2 | AC30: -34 | BA30: Potato | BB30: 4 | BC30: -2.8 | BD30: 7 | BE30: -2.8 | BF30: 10,9 | BG30: -2 | BH30: 1
D31: 28 | E31: -27.6 | F31: -23.8 | G31: -19.6 | AA31: -33.6 | AB31: -28 | AC31: -30.8
D32: 29 | E32: -24.4 | F32: -21.3 | G32: -17.1 | AA32: -30.75 | AB32: -25.15 | AC32: -27.95
D33: 30 | E33: -24.9 | F33: -21.8 | G33: -18.1 | AA33: -31.5 | AB33: -25.9 | AC33: -28.7
D34: 31 | E34: -25 | F34: -20.7 | G34: -15.5 | AA34: -30.25 | AB34: -24.65 | AC34: -27.45
C35: Feb.ruary | D35: 1 | E35: -28.2 | F35: -22.2 | G35: -16.1 | AA35: -32.15 | AB35: -26.55 | AC35: -29.35
D36: 2 | E36: -21.8 | F36: -14.1 | G36: -1.5 | AA36: -21.65 | AB36: -16.05 | AC36: -18.85
D37: 3 | E37: -17.5 | F37: -13.9 | G37: 0.1 | AA37: -18.7 | AB37: -13.1 | AC37: -15.9
D38: 4 | E38: -18.7 | F38: -16.5 | G38: -14 | AA38: -26.35 | AB38: -20.75 | AC38: -23.55
D39: 5 | E39: -23.4 | F39: -18.2 | G39: -10.8 | AA39: -27.1 | AB39: -21.5 | AC39: -24.3
D40: 6 | E40: -12.6 | F40: -9.5 | G40: -6 | AA40: -19.3 | AB40: -13.7 | AC40: -16.5
D41: 7 | E41: -16.1 | F41: -11.9 | G41: -6.5 | AA41: -21.3 | AB41: -15.7 | AC41: -18.5
D42: 8 | E42: -14.9 | F42: -12.3 | G42: -6.5 | AA42: -20.7 | AB42: -15.1 | AC42: -17.9
D43: 9 | E43: -14 | F43: -10.7 | G43: -7.2 | AA43: -20.6 | AB43: -15 | AC43: -17.8
D44: 10 | E44: -27.7 | F44: -21.2 | G44: -11.4 | AA44: -29.55 | AB44: -23.95 | AC44: -26.75
D45: 11 | E45: -32.5 | F45: -28.2 | G45: -25.1 | AA45: -38.8 | AB45: -33.2 | AC45: -36
D46: 12 | E46: -31.2 | F46: -28.5 | G46: -25.2 | AA46: -38.2 | AB46: -32.6 | AC46: -35.4
D47: 13 | E47: -30.2 | F47: -25.4 | G47: -18.5 | AA47: -34.35 | AB47: -28.75 | AC47: -31.55
D48: 14 | E48: -25.3 | F48: -21.3 | G48: -14.2 | AA48: -29.75 | AB48: -24.15 | AC48: -26.95
D49: 15 | E49: -25 | F49: -22.7 | G49: -19.2 | AA49: -32.1 | AB49: -26.5 | AC49: -29.3
D50: 16 | E50: -27.8 | F50: -24.3 | G50: -18 | AA50: -32.9 | AB50: -27.3 | AC50: -30.1
D51: 17 | E51: -25 | F51: -20.9 | G51: -14 | AA51: -29.5 | AB51: -23.9 | AC51: -26.7
D52: 18 | E52: -21 | F52: -19.6 | G52: -15.6 | AA52: -28.3 | AB52: -22.7 | AC52: -25.5
D53: 19 | E53: -26 | F53: -20.1 | G53: -11.6 | AA53: -28.8 | AB53: -23.2 | AC53: -26
D54: 20 | E54: -28.7 | F54: -21 | G54: -11.6 | AA54: -30.15 | AB54: -24.55 | AC54: -27.35
D55: 21 | E55: -27 | F55: -19.3 | G55: -11.8 | AA55: -29.4 | AB55: -23.8 | AC55: -26.6
D56: 22 | E56: -16 | F56: -13.2 | G56: -9.5 | AA56: -22.75 | AB56: -17.15 | AC56: -19.95
D57: 23 | E57: -25 | F57: -17.6 | G57: -11.5 | AA57: -28.25 | AB57: -22.65 | AC57: -25.45
D58: 24 | E58: -20.5 | F58: -17.7 | G58: -14.5 | AA58: -27.5 | AB58: -21.9 | AC58: -24.7
D59: 25 | E59: -22 | F59: -18.6 | G59: -14.6 | AA59: -28.3 | AB59: -22.7 | AC59: -25.5
D60: 26 | E60: -25.8 | F60: -17.3 | G60: -8.2 | AA60: -27 | AB60: -21.4 | AC60: -24.2
D61: 27 | E61: -13.4 | F61: -9.4 | G61: -7.1 | AA61: -20.25 | AB61: -14.65 | AC61: -17.45
D62: 28 | E62: -16.4 | F62: -10.7 | G62: -5.5 | AA62: -20.95 | AB62: -15.35 | AC62: -18.15
D63: 29 | E63: -21.7 | F63: -14.8 | G63: -7.7 | AA63: -24.7 | AB63: -19.1 | AC63: -21.9
C64: Mar. | D64: 1 | E64: -22.1 | F64: -16.8 | G64: -11.3 | AA64: -26.7 | AB64: -21.1 | AC64: -23.9
D65: 2 | E65: -18.4 | F65: -12.7 | G65: -7.5 | AA65: -22.95 | AB65: -17.35 | AC65: -20.15
D66: 3 | E66: -25.8 | F66: -17.1 | G66: -11 | AA66: -28.4 | AB66: -22.8 | AC66: -25.6
D67: 4 | E67: -18.1 | F67: -13.3 | G67: -8 | AA67: -23.05 | AB67: -17.45 | AC67: -20.25
D68: 5 | E68: -20.3 | F68: -14 | G68: -6.9 | AA68: -23.6 | AB68: -18 | AC68: -20.8
D69: 6 | E69: -21.1 | F69: -12.9 | G69: -2.7 | AA69: -21.9 | AB69: -16.3 | AC69: -19.1
D70: 7 | E70: -23 | F70: -14.4 | G70: -5.4 | AA70: -24.2 | AB70: -18.6 | AC70: -21.4
D71: 8 | E71: -17.6 | F71: -10.5 | G71: -2.1 | AA71: -19.85 | AB71: -14.25 | AC71: -17.05
D72: 9 | E72: -16 | F72: -10.1 | G72: -3.8 | AA72: -19.9 | AB72: -14.3 | AC72: -17.1
D73: 10 | E73: -15.9 | F73: -9.1 | G73: -3.2 | AA73: -19.55 | AB73: -13.95 | AC73: -16.75
D74: 11 | E74: -17.2 | F74: -8.8 | G74: -2.6 | AA74: -19.9 | AB74: -14.3 | AC74: -17.1
D75: 12 | E75: -7.8 | F75: -5.6 | G75: -3.4 | AA75: -15.6 | AB75: -10 | AC75: -12.8
D76: 13 | E76: -13.7 | F76: -6.2 | G76: -1.3 | AA76: -17.5 | AB76: -11.9 | AC76: -14.7
D77: 14 | E77: -15.3 | F77: -9.9 | G77: -4.4 | AA77: -19.85 | AB77: -14.25 | AC77: -17.05
D78: 15 | E78: -16.2 | F78: -8.7 | G78: -2.6 | AA78: -19.4 | AB78: -13.8 | AC78: -16.6
D79: 16 | E79: -10.1 | F79: -6 | G79: -1.7 | AA79: -15.9 | AB79: -10.3 | AC79: -13.1
D80: 17 | E80: -10.5 | F80: -8.5 | G80: -4.9 | AA80: -17.7 | AB80: -12.1 | AC80: -14.9
D81: 18 | E81: -19.5 | F81: -14.5 | G81: -10.3 | AA81: -24.9 | AB81: -19.3 | AC81: -22.1
D82: 19 | E82: -22 | F82: -13.7 | G82: -6 | AA82: -24 | AB82: -18.4 | AC82: -21.2
D83: 20 | E83: -20 | F83: -13.6 | G83: -7.1 | AA83: -23.55 | AB83: -17.95 | AC83: -20.75
D84: 21 | E84: -19.8 | F84: -14.1 | G84: -9.2 | AA84: -24.5 | AB84: -18.9 | AC84: -21.7
D85: 22 | E85: -17.9 | F85: -11.1 | G85: -6.1 | AA85: -22 | AB85: -16.4 | AC85: -19.2
D86: 23 | E86: -13.5 | F86: -8.2 | G86: -3 | AA86: -18.25 | AB86: -12.65 | AC86: -15.45
D87: 24 | E87: -15.5 | F87: -9.2 | G87: -3.8 | AA87: -19.65 | AB87: -14.05 | AC87: -16.85
D88: 25 | E88: -13.1 | F88: -10 | G88: -6.4 | AA88: -19.75 | AB88: -14.15 | AC88: -16.95
D89: 26 | E89: -15.3 | F89: -8.6 | G89: -3.5 | AA89: -19.4 | AB89: -13.8 | AC89: -16.6
D90: 27 | E90: -15.1 | F90: -10 | G90: -5.6 | AA90: -20.35 | AB90: -14.75 | AC90: -17.55
D91: 28 | E91: -19.3 | F91: -10.6 | G91: -2.6 | AA91: -20.95 | AB91: -15.35 | AC91: -18.15
D92: 29 | E92: -14.6 | F92: -8.1 | G92: -2.6 | AA92: -18.6 | AB92: -13 | AC92: -15.8
D93: 30 | E93: -15.8 | F93: -7.2 | G93: 1 | AA93: -17.4 | AB93: -11.8 | AC93: -14.6
D94: 31 | E94: -10.3 | F94: -2.6 | G94: 3.5 | AA94: -13.4 | AB94: -7.8 | AC94: -10.6
C95: Apr. | D95: 1 | E95: -7.9 | F95: -2 | G95: 3 | AA95: -12.45 | AB95: -6.85 | AC95: -9.65
D96: 2 | E96: -9.2 | F96: -1.7 | G96: 3.1 | AA96: -13.05 | AB96: -7.45 | AC96: -10.25
D97: 3 | E97: -7.2 | F97: -1.1 | G97: 3.1 | AA97: -12.05 | AB97: -6.45 | AC97: -9.25
D98: 4 | E98: -6.6 | F98: -0.8 | G98: 3.9 | AA98: -11.35 | AB98: -5.75 | AC98: -8.55
D99: 5 | E99: -6.5 | F99: -3 | G99: 0.9 | AA99: -12.8 | AB99: -7.2 | AC99: -10
D100: 6 | E100: -5.6 | F100: -3.9 | G100: -1.7 | AA100: -13.65 | AB100: -8.05 | AC100: -10.85
D101: 7 | E101: -8.2 | F101: -3.6 | G101: 1.2 | AA101: -13.5 | AB101: -7.9 | AC101: -10.7
D102: 8 | E102: -6.5 | F102: -2.6 | G102: 1.5 | AA102: -12.5 | AB102: -6.9 | AC102: -9.7
D103: 9 | E103: -7.5 | F103: -1 | G103: 4.5 | AA103: -11.5 | AB103: -5.9 | AC103: -8.7
D104: 10 | E104: -1.6 | F104: 1.4 | G104: 6.2 | AA104: -7.7 | AB104: -2.1 | AC104: -4.9
D105: 11 | E105: -0.5 | F105: 1.8 | G105: 5.9 | AA105: -7.3 | AB105: -1.7 | AC105: -4.5
D106: 12 | E106: -4 | F106: 0.7 | G106: 5.6 | AA106: -9.2 | AB106: -3.6 | AC106: -6.4
D107: 13 | E107: -2.1 | F107: 0.9 | G107: 5.4 | AA107: -8.35 | AB107: -2.75 | AC107: -5.55
D108: 14 | E108: -3 | F108: 1.9 | G108: 6.9 | AA108: -8.05 | AB108: -2.45 | AC108: -5.25
D109: 15 | E109: -2.8 | F109: 2.8 | G109: 8.6 | AA109: -7.1 | AB109: -1.5 | AC109: -4.3
D110: 16 | E110: 1 | F110: 3.9 | G110: 8.4 | AA110: -5.3 | AB110: 0.3 | AC110: -2.5
D111: 17 | E111: 0.9 | F111: 3.5 | G111: 7.8 | AA111: -5.65 | AB111: -0.05 | AC111: -2.85
D112: 18 | E112: -2.1 | F112: 1.1 | G112: 4.4 | AA112: -8.85 | AB112: -3.25 | AC112: -6.05
D113: 19 | E113: 2.6 | F113: 10.4 | G113: 18 | AA113: 0.3 | AB113: 5.9 | AC113: 3.1
D114: 20 | E114: 6.6 | F114: 12 | G114: 19.8 | AA114: 3.2 | AB114: 8.8 | AC114: 6
D115: 21 | E115: -3.8 | F115: -0.1 | G115: 6.6 | AA115: -8.6 | AB115: -3 | AC115: -5.8
D116: 22 | E116: -0.1 | F116: 3.3 | G116: 7.9 | AA116: -6.1 | AB116: -0.5 | AC116: -3.3
D117: 23 | E117: -3.1 | F117: 0.3 | G117: 3.7 | AA117: -9.7 | AB117: -4.1 | AC117: -6.9
D118: 24 | E118: -0.4 | F118: 2.6 | G118: 8.4 | AA118: -6 | AB118: -0.4 | AC118: -3.2
D119: 25 | E119: -4.1 | F119: -1.7 | G119: 1 | AA119: -11.55 | AB119: -5.95 | AC119: -8.75
D120: 26 | E120: -5.2 | F120: -3.9 | G120: -1.5 | AA120: -13.35 | AB120: -7.75 | AC120: -10.55
D121: 27 | E121: -7.6 | F121: -5.3 | G121: -1.9 | AA121: -14.75 | AB121: -9.15 | AC121: -11.95
D122: 28 | E122: -7.8 | F122: -5.2 | G122: -2.2 | AA122: -15 | AB122: -9.4 | AC122: -12.2
D123: 29 | E123: -11.5 | F123: -2.6 | G123: 3.2 | AA123: -14.15 | AB123: -8.55 | AC123: -11.35
D124: 30 | E124: -4 | F124: -0.8 | G124: 1.9 | AA124: -11.05 | AB124: -5.45 | AC124: -8.25
C125: May | D125: 1 | E125: -1.6 | F125: 2.9 | G125: 8 | AA125: -6.8 | AB125: -1.2 | AC125: -4
D126: 2 | E126: -1.3 | F126: 5.8 | G126: 11.3 | AA126: -5 | AB126: 0.6 | AC126: -2.2
D127: 3 | E127: 3.1 | F127: 6.8 | G127: 12.5 | AA127: -2.2 | AB127: 3.4 | AC127: 0.6
D128: 4 | E128: -0.5 | F128: 7.5 | G128: 14.5 | AA128: -3 | AB128: 2.6 | AC128: -0.2
D129: 5 | E129: 5.3 | F129: 15.1 | G129: 24.1 | AA129: 4.7 | AB129: 10.3 | AC129: 7.5
D130: 6 | E130: 10.9 | F130: 18.6 | G130: 26.8 | AA130: 8.85 | AB130: 14.45 | AC130: 11.65
D131: 7 | E131: 7.8 | F131: 18.3 | G131: 28 | AA131: 7.9 | AB131: 13.5 | AC131: 10.7
D132: 8 | E132: 10 | F132: 20.2 | G132: 28 | AA132: 9 | AB132: 14.6 | AC132: 11.8
D133: 9 | E133: 10.1 | F133: 20 | G133: 28.6 | AA133: 9.35 | AB133: 14.95 | AC133: 12.15
D134: 10 | E134: 14.1 | F134: 17 | G134: 21.1 | AA134: 7.6 | AB134: 13.2 | AC134: 10.4
D135: 11 | E135: 4.7 | F135: 12 | G135: 21.8 | AA135: 3.25 | AB135: 8.85 | AC135: 6.05
D136: 12 | E136: 0.3 | F136: 5 | G136: 14.4 | AA136: -2.65 | AB136: 2.95 | AC136: 0.15
D137: 13 | E137: 2 | F137: 7.4 | G137: 14 | AA137: -2 | AB137: 3.6 | AC137: 0.8
D138: 14 | E138: 5.5 | F138: 8.7 | G138: 12.2 | AA138: -1.15 | AB138: 4.45 | AC138: 1.65
D139: 15 | E139: 1.9 | F139: 8.2 | G139: 15 | AA139: -1.55 | AB139: 4.05 | AC139: 1.25
D140: 16 | E140: 10 | F140: 17.8 | G140: 25.6 | AA140: 7.8 | AB140: 13.4 | AC140: 10.6
D141: 17 | E141: 7.9 | F141: 12.1 | G141: 23.3 | AA141: 5.6 | AB141: 11.2 | AC141: 8.4
D142: 18 | E142: 6.4 | F142: 16.2 | G142: 28.5 | AA142: 7.45 | AB142: 13.05 | AC142: 10.25
D143: 19 | E143: 16.3 | F143: 23.1 | G143: 30.8 | AA143: 13.55 | AB143: 19.15 | AC143: 16.35
D144: 20 | E144: 15.6 | F144: 20.7 | G144: 29.4 | AA144: 12.5 | AB144: 18.1 | AC144: 15.3
D145: 21 | E145: 1.8 | F145: 5.7 | G145: 19.6 | AA145: 0.7 | AB145: 6.3 | AC145: 3.5
D146: 22 | E146: 0.4 | F146: 5.2 | G146: 11.4 | AA146: -4.1 | AB146: 1.5 | AC146: -1.3
D147: 23 | E147: 3.8 | F147: 9.3 | G147: 17.4 | AA147: 0.6 | AB147: 6.2 | AC147: 3.4
D148: 24 | E148: 9.9 | F148: 12.1 | G148: 15.9 | AA148: 2.9 | AB148: 8.5 | AC148: 5.7
D149: 25 | E149: 3.8 | F149: 8.5 | G149: 13.6 | AA149: -1.3 | AB149: 4.3 | AC149: 1.5
D150: 26 | E150: 5.5 | F150: 9.3 | G150: 13.4 | AA150: -0.55 | AB150: 5.05 | AC150: 2.25
D151: 27 | E151: 2.6 | F151: 9.3 | G151: 15.3 | AA151: -1.05 | AB151: 4.55 | AC151: 1.75
D152: 28 | E152: 3.3 | F152: 10.3 | G152: 16.6 | AA152: -0.05 | AB152: 5.55 | AC152: 2.75
D153: 29 | E153: 3.1 | F153: 10.4 | G153: 16.9 | AA153: 0 | AB153: 5.6 | AC153: 2.8
D154: 30 | E154: 1.6 | F154: 11.7 | G154: 18.7 | AA154: 0.15 | AB154: 5.75 | AC154: 2.95
D155: 31 | E155: 2.9 | F155: 13.3 | G155: 20.4 | AA155: 1.65 | AB155: 7.25 | AC155: 4.45
C156: Jun. | D156: 1 | E156: 5 | F156: 15.4 | G156: 23.5 | AA156: 4.25 | AB156: 9.85 | AC156: 7.05
D157: 2 | E157: 10.5 | F157: 18.2 | G157: 25.8 | AA157: 8.15 | AB157: 13.75 | AC157: 10.95
D158: 3 | E158: 13 | F158: 16.5 | G158: 22 | AA158: 7.5 | AB158: 13.1 | AC158: 10.3
D159: 4 | E159: 4.8 | F159: 15.4 | G159: 24.7 | AA159: 4.75 | AB159: 10.35 | AC159: 7.55
D160: 5 | E160: 14.9 | F160: 17.8 | G160: 22.8 | AA160: 8.85 | AB160: 14.45 | AC160: 11.65
D161: 6 | E161: 10.5 | F161: 18.3 | G161: 26.3 | AA161: 8.4 | AB161: 14 | AC161: 11.2
D162: 7 | E162: 8.4 | F162: 15.9 | G162: 22.6 | AA162: 5.5 | AB162: 11.1 | AC162: 8.3
D163: 8 | E163: 12.3 | F163: 20.7 | G163: 28.5 | AA163: 10.4 | AB163: 16 | AC163: 13.2
D164: 9 | E164: 15.9 | F164: 21.7 | G164: 26.6 | AA164: 11.25 | AB164: 16.85 | AC164: 14.05
D165: 10 | E165: 14 | F165: 20.9 | G165: 27.1 | AA165: 10.55 | AB165: 16.15 | AC165: 13.35
D166: 11 | E166: 16 | F166: 20.3 | G166: 26.9 | AA166: 11.45 | AB166: 17.05 | AC166: 14.25
D167: 12 | E167: 13.5 | F167: 15.1 | G167: 20.1 | AA167: 6.8 | AB167: 12.4 | AC167: 9.6
D168: 13 | E168: 11.3 | F168: 13.1 | G168: 16.6 | AA168: 3.95 | AB168: 9.55 | AC168: 6.75
D169: 14 | E169: 8.5 | F169: 9.3 | G169: 12.2 | AA169: 0.35 | AB169: 5.95 | AC169: 3.15
D170: 15 | E170: 8.9 | F170: 13.9 | G170: 20 | AA170: 4.45 | AB170: 10.05 | AC170: 7.25
D171: 16 | E171: 12.4 | F171: 20.6 | G171: 28 | AA171: 10.2 | AB171: 15.8 | AC171: 13
D172: 17 | E172: 15.5 | F172: 23.4 | G172: 29.6 | AA172: 12.55 | AB172: 18.15 | AC172: 15.35
D173: 18 | E173: 17.9 | F173: 23.8 | G173: 31.7 | AA173: 14.8 | AB173: 20.4 | AC173: 17.6
D174: 19 | E174: 18.5 | F174: 24.3 | G174: 29.9 | AA174: 14.2 | AB174: 19.8 | AC174: 17
D175: 20 | E175: 15.6 | F175: 22.5 | G175: 27.6 | AA175: 11.6 | AB175: 17.2 | AC175: 14.4
D176: 21 | E176: 12.9 | F176: 20.4 | G176: 26.7 | AA176: 9.8 | AB176: 15.4 | AC176: 12.6
D177: 22 | E177: 13.5 | F177: 20.7 | G177: 27.7 | AA177: 10.6 | AB177: 16.2 | AC177: 13.4
D178: 23 | E178: 15.4 | F178: 17.4 | G178: 22.8 | AA178: 9.1 | AB178: 14.7 | AC178: 11.9
D179: 24 | E179: 15.1 | F179: 20.2 | G179: 26.4 | AA179: 10.75 | AB179: 16.35 | AC179: 13.55
D180: 25 | E180: 17.6 | F180: 20.7 | G180: 24.4 | AA180: 11 | AB180: 16.6 | AC180: 13.8
D181: 26 | E181: 13.5 | F181: 20.9 | G181: 27.9 | AA181: 10.7 | AB181: 16.3 | AC181: 13.5
D182: 27 | E182: 19.4 | F182: 22.9 | G182: 27.3 | AA182: 13.35 | AB182: 18.95 | AC182: 16.15
D183: 28 | E183: 14.8 | F183: 20 | G183: 24.7 | AA183: 9.75 | AB183: 15.35 | AC183: 12.55
D184: 29 | E184: 11.2 | F184: 15.1 | G184: 21.5 | AA184: 6.35 | AB184: 11.95 | AC184: 9.15
D185: 30 | E185: 9.9 | F185: 17 | G185: 23.8 | AA185: 6.85 | AB185: 12.45 | AC185: 9.65
C186: Jul. | D186: 1 | E186: 12.4 | F186: 18.5 | G186: 25.3 | AA186: 8.85 | AB186: 14.45 | AC186: 11.65
D187: 2 | E187: 16 | F187: 18.8 | G187: 23 | AA187: 9.5 | AB187: 15.1 | AC187: 12.3
D188: 3 | E188: 15.1 | F188: 17.8 | G188: 21.9 | AA188: 8.5 | AB188: 14.1 | AC188: 11.3
D189: 4 | E189: 16 | F189: 19 | G189: 24.9 | AA189: 10.45 | AB189: 16.05 | AC189: 13.25
D190: 5 | E190: 15.6 | F190: 21.3 | G190: 25.8 | AA190: 10.7 | AB190: 16.3 | AC190: 13.5
D191: 6 | E191: 16.5 | F191: 20.1 | G191: 24.7 | AA191: 10.6 | AB191: 16.2 | AC191: 13.4
D192: 7 | E192: 13.9 | F192: 19.9 | G192: 25.3 | AA192: 9.6 | AB192: 15.2 | AC192: 12.4
D193: 8 | E193: 12.3 | F193: 19.7 | G193: 28.7 | AA193: 10.5 | AB193: 16.1 | AC193: 13.3
D194: 9 | E194: 16 | F194: 20.2 | G194: 25.9 | AA194: 10.95 | AB194: 16.55 | AC194: 13.75
D195: 10 | E195: 16.5 | F195: 18.4 | G195: 21.7 | AA195: 9.1 | AB195: 14.7 | AC195: 11.9
D196: 11 | E196: 11.8 | F196: 13.5 | G196: 16.8 | AA196: 4.3 | AB196: 9.9 | AC196: 7.1
D197: 12 | E197: 13.4 | F197: 15 | G197: 17.5 | AA197: 5.45 | AB197: 11.05 | AC197: 8.25
D198: 13 | E198: 13 | F198: 14.9 | G198: 17.6 | AA198: 5.3 | AB198: 10.9 | AC198: 8.1
D199: 14 | E199: 15.9 | F199: 19.7 | G199: 25.2 | AA199: 10.55 | AB199: 16.15 | AC199: 13.35
D200: 15 | E200: 18.8 | F200: 23 | G200: 26.9 | AA200: 12.85 | AB200: 18.45 | AC200: 15.65
... 2050 more rows
